{"text_format":"1","workbook":"xlsx","n_sheets":3,"sheets":["Modèle","Monique"," Albert"],"not_rendered":{"charts":15,"images":7,"macros":1,"external_links":0,"defined_names":19,"comments":0,"pivot_tables":0},"unopened":[],"bounds":{"document_bytes":16777216,"sheet_cells":100000,"rows_first":2000,"rows_last":500,"rows_between":2000,"halvings":0,"cell_chars":16384,"cell_head_chars":4096},"cells_cut":0,"cells_raw":0,"read":"whole","date_system":"1900"}

{"sheet":"Modèle","index":0,"n_rows":439,"n_cols":15,"rows_kept":439,"cut":false,"hidden":false,"merged":[]}
["Personne Accompagnée","Modèle","Modèle",null,null,null,null,null,null,null,null,null,null,null,{"$f":"IF(A1<>\"\",\"\",\"OK\")","v":""}]
["Accompagnateur","Prénom","Nom",null,null,null,null,null,null,null,null,null,null,null,""]
[null,null,null,null,null,null,null,null,null,null,null,null,null,null,"OK"]
[null,null,null,null,null,null,null,null,null,null,null,null,null,null,"OK"]
[null,null,null,null,null,null,null,null,null,null,null,null,null,null,"OK"]
[null,null,null,null,null,null,null,null,null,null,null,null,null,null,"OK"]
[null,null,null,null,null,null,null,null,null,null,null,null,null,null,"OK"]
[null,{"$f":"\"Evaluation réalisée par \"&B1&\" \"&C1","v":"Evaluation réalisée par Modèle Modèle"},null,null,null,null,null,{"$f":"\"Evaluation réalisée par \"&B2&\" \"&C2","v":"Evaluation réalisée par Prénom Nom"}]
[{"$f":"IF(B1=C1,C1,B1&\" \"&C1)","v":"Modèle"},"je suis autonome","il faut juste me le rappeler","j'ai besoin d'un coup de main","j'ai besoin d'une aide extérieure","Je ne suis pas concerné",null,"Acquis","En cours d’acquis/stimulé ou soutenu","Acquis mais fluctuant en fonction du moment","Non acquis/ compensé","Pas concerné / pas évaluable",null,"écart et commentaires",""]
["Logement",{"$f":"COUNTIF(B11:B25,\"x\")/COUNTA($A$11:$A$25)","v":1},{"$f":"COUNTIF(C11:C25,\"x\")/COUNTA($A$11:$A$25)","v":0},0,0,0,{"$f":"IF(SUM(B10:F10)<>100%,\"D\",\"C\")","v":"C"},{"$f":"COUNTIF(H11:H25,\"x\")/COUNTA($A$11:$A$25)","v":0},{"$f":"COUNTIF(I11:I25,\"x\")/COUNTA($A$11:$A$25)","v":1},0,0,0,{"$f":"IF(SUM(H10:L10)<>100%,\"D\",\"C\")","v":"C"},null,""]
["Gérer l’entretien de son logement","x",null,null,null,null,{"$f":"IF(COUNTA(B11:F11)<>1,\"L\",\"J\")","v":"J"},null,"x",null,null,null,{"$f":"IF(COUNTA(H11:L11)<>1,\"L\",\"J\")","v":"J"},null,""]
["Investir son logement","x",null,null,null,null,{"$f":"IF(COUNTA(B12:F12)<>1,\"L\",\"J\")","v":"J"},null,"x",null,null,null,{"$f":"IF(COUNTA(H12:L12)<>1,\"L\",\"J\")","v":"J"},null,""]
["Réagir en cas d’imprévu (ou de difficultés)","x",null,null,null,null,"J",null,"x",null,null,null,"J",null,""]
["Relativiser les difficultés dans le logement","x",null,null,null,null,"J",null,"x",null,null,null,"J",null,""]
[null,null,null,null,null,null,"L",null,null,null,null,null,"L",null,"OK"]
[null,null,null,null,null,null,"L",null,null,null,null,null,"L",null,"OK"]
[null,null,null,null,null,null,"L",null,null,null,null,null,"L",null,"OK"]
[null,null,null,null,null,null,"L",null,null,null,null,null,"L",null,"OK"]
[null,null,null,null,null,null,"L",null,null,null,null,null,"L",null,"OK"]
[null,null,null,null,null,null,"L",null,null,null,null,null,"L",null,"OK"]
[null,null,null,null,null,null,"L",null,null,null,null,null,"L",null,"OK"]
[null,null,null,null,null,null,"L",null,null,null,null,null,"L",null,"OK"]
[null,null,null,null,null,null,"L",null,null,null,null,null,"L",null,"OK"]
[null,null,null,null,null,null,"L",null,null,null,null,null,"L",null,"OK"]
[null,null,null,null,null,null,"L",null,null,null,null,null,"L",null,"OK"]
["Observations",null,null,null,null,null,null,null,null,null,null,null,null,null,""]
["Alimentation",{"$f":"COUNTIF(B28:B31,\"x\")/4","v":1},{"$f":"COUNTIF(C28:C42,\"x\")/COUNTA($A$28:$A$42)","v":0},{"$f":"COUNTIF(D28:D42,\"x\")/COUNTA($A$28:$A$42)","v":0},0,0,{"$f":"IF(SUM(B27:F27)<>100%,\"D\",\"C\")","v":"C"},1,0,0,0,0,{"$f":"IF(SUM(H27:L27)<>100%,\"D\",\"C\")","v":"C"},null,""]
["Savoir faire un menu varié et équilibré ","x",null,null,null,null,"J","x",null,null,null,null,"J",null,""]
["Etablir une liste de courses","x",null,null,null,null,"J","x",null,null,null,null,"J",null,""]
["Respecter un budget alimentaire ","x",null,null,null,null,"J","x",null,null,null,null,"J",null,""]
["Préparer son repas ","x",null,null,null,null,"J","x",null,null,null,null,"J",null,""]
[null,null,null,null,null,null,"L",null,null,null,null,null,"L",null,"OK"]
[null,null,null,null,null,null,"L",null,null,null,null,null,"L",null,"OK"]
[null,null,null,null,null,null,"L",null,null,null,null,null,"L",null,"OK"]
[null,null,null,null,null,null,"L",null,null,null,null,null,"L",null,"OK"]
[null,null,null,null,null,null,"L",null,null,null,null,null,"L",null,"OK"]
[null,null,null,null,null,null,"L",null,null,null,null,null,"L",null,"OK"]
[null,null,null,null,null,null,"L",null,null,null,null,null,"L",null,"OK"]
[null,null,null,null,null,null,"L",null,null,null,null,null,"L",null,"OK"]
[null,null,null,null,null,null,"L",null,null,null,null,null,"L",null,"OK"]
[null,null,null,null,null,null,"L",null,null,null,null,null,"L",null,"OK"]
[null,null,null,null,null,null,"L",null,null,null,null,null,"L",null,"OK"]
["Observations",null,null,null,null,null,null,null,null,null,null,null,null,null,""]
["Hygiène",{"$f":"COUNTIF(B45:B59,\"x\")/COUNTA($A$45:$A$59)","v":0},{"$f":"COUNTIF(C45:C59,\"x\")/COUNTA($A$45:$A$59)","v":1},0,0,0,{"$f":"IF(SUM(B44:F44)<>100%,\"D\",\"C\")","v":"C"},{"$f":"COUNTIF(H45:H59,\"x\")/COUNTA($A$45:$A$59)","v":0},{"$f":"COUNTIF(I45:I59,\"x\")/COUNTA($A$45:$A$59)","v":1},0,0,0,{"$f":"IF(SUM(H44:L44)<>100%,\"D\",\"C\")","v":"C"},null,""]
["Savoir gérer son linge",null,"x",null,null,null,"J",null,"x",null,null,null,"J",null,""]
["Porter une attention à son hygiene corporelle",null,"x",null,null,null,"J",null,"x",null,null,null,"J",null,""]
["Porter une attention à sa tenue vestimentaire",null,"x",null,null,null,"J",null,"x",null,null,null,"J",null,""]
[null,null,null,null,null,null,"L",null,null,null,null,null,"L",null,"OK"]
[null,null,null,null,null,null,"L",null,null,null,null,null,"L",null,"OK"]
[null,null,null,null,null,null,"L",null,null,null,null,null,"L",null,"OK"]
[null,null,null,null,null,null,"L",null,null,null,null,null,"L",null,"OK"]
[null,null,null,null,null,null,"L",null,null,null,null,null,"L",null,"OK"]
[null,null,null,null,null,null,"L",null,null,null,null,null,"L",null,"OK"]
[null,null,null,null,null,null,"L",null,null,null,null,null,"L",null,"OK"]
[null,null,null,null,null,null,"L",null,null,null,null,null,"L",null,"OK"]
[null,null,null,null,null,null,"L",null,null,null,null,null,"L",null,"OK"]
[null,null,null,null,null,null,"L",null,null,null,null,null,"L",null,"OK"]
[null,null,null,null,null,null,"L",null,null,null,null,null,"L",null,"OK"]
[null,null,null,null,null,null,"L",null,null,null,null,null,"L",null,"OK"]
["Observations",null,null,null,null,null,null,null,null,null,null,null,null,null,""]
["Santé",{"$f":"COUNTIF(B62:B75,\"x\")/COUNTA($A$62:$A$75)","v":0},{"$f":"COUNTIF(C62:C75,\"x\")/COUNTA($A$62:$A$75)","v":1},0,0,0,{"$f":"IF(SUM(B61:F61)<>100%,\"D\",\"C\")","v":"C"},{"$f":"COUNTIF(H62:H75,\"x\")/COUNTA($A$62:$A$75)","v":1},{"$f":"COUNTIF(I62:I75,\"x\")/COUNTA($A$62:$A$75)","v":0},0,0,0,{"$f":"IF(SUM(H61:L61)<>100%,\"D\",\"C\")","v":"C"},null,""]
["Savoir prendre seul son traitement médical régulièrement",null,"x",null,null,null,"J","x",null,null,null,null,"J",null,""]
["Etre conscient de son état de santé",null,"x",null,null,null,"J","x",null,null,null,null,"J",null,""]
["Gérer ses RDV médicaux",null,"x",null,null,null,"J","x",null,null,null,null,"J",null,""]
["Gérer ses Rdv médicaux avec un spécialiste",null,"x",null,null,null,"J","x",null,null,null,null,"J",null,{"$f":"IF(A65<>\"\",\"\",\"OK\")","v":""}]
["Adapter son hygiène de vie à son état de santé",null,"x",null,null,null,"J","x",null,null,null,null,"J",null,""]
["Se rendre à la pharmacie",null,"x",null,null,null,"J","x",null,null,null,null,"J",null,""]
["Savoir appeler du secours",null,"x",null,null,null,"J","x",null,null,null,null,"J",null,""]
["Savoir se soigner en cas de petite blessure",null,"x",null,null,null,"J","x",null,null,null,null,"J",null,""]
[null,null,null,null,null,null,"L",null,null,null,null,null,"L",null,"OK"]
[null,null,null,null,null,null,"L",null,null,null,null,null,"L",null,"OK"]
[null,null,null,null,null,null,"L",null,null,null,null,null,"L",null,"OK"]
[null,null,null,null,null,null,"L",null,null,null,null,null,"L",null,"OK"]
[null,null,null,null,null,null,"L",null,null,null,null,null,"L",null,"OK"]
[null,null,null,null,null,null,"L",null,null,null,null,null,"L",null,"OK"]
["Observations",null,null,null,null,null,null,null,null,null,null,null,null,null,""]
["Budget",{"$f":"COUNTIF(B78:B94,\"x\")/COUNTA($A$78:$A$94)","v":0},{"$f":"COUNTIF(C78:C94,\"x\")/COUNTA($A$78:$A$94)","v":1},0,0,0,{"$f":"IF(SUM(B77:F77)<>100%,\"D\",\"C\")","v":"C"},{"$f":"COUNTIF(H78:H94,\"x\")/COUNTA($A$78:$A$94)","v":1},{"$f":"COUNTIF(I78:I94,\"x\")/COUNTA($A$78:$A$94)","v":0},0,0,0,{"$f":"IF(SUM(H77:L77)<>100%,\"D\",\"C\")","v":"C"},null,""]
["Savoir compter son argent",null,"x",null,null,null,{"$f":"IF(COUNTA(B78:F78)<>1,\"L\",\"J\")","v":"J"},"x",null,null,null,null,{"$f":"IF(COUNTA(H78:L78)<>1,\"L\",\"J\")","v":"J"},null,""]
["Reconnaître les billets et pièces",null,"x",null,null,null,"J","x",null,null,null,null,"J",null,""]
["Avoir la notion de l’argent",null,"x",null,null,null,"J","x",null,null,null,null,"J",null,""]
["Respecter un budget ",null,"x",null,null,null,"J","x",null,null,null,null,"J",null,""]
["Savoir se mettre en relation en cas de difficultés",null,"x",null,null,null,"J","x",null,null,null,null,"J",null,""]
["Savoir anticiper ses dépenses futures",null,"x",null,null,null,"J","x",null,null,null,null,"J",null,""]
["Connaître son budget mensuel (charge fixe)",null,"x",null,null,null,"J","x",null,null,null,null,"J",null,""]
[null,null,null,null,null,null,"L",null,null,null,null,null,"L",null,"OK"]
[null,null,null,null,null,null,"L",null,null,null,null,null,"L",null,"OK"]
[null,null,null,null,null,null,"L",null,null,null,null,null,"L",null,"OK"]
[null,null,null,null,null,null,"L",null,null,null,null,null,"L",null,"OK"]
[null,null,null,null,null,null,"L",null,null,null,null,null,"L",null,"OK"]
[null,null,null,null,null,null,"L",null,null,null,null,null,"L",null,"OK"]
[null,null,null,null,null,null,"L",null,null,null,null,null,"L",null,"OK"]
[null,null,null,null,null,null,"L",null,null,null,null,null,"L",null,"OK"]
[null,null,null,null,null,null,"L",null,null,null,null,null,"L",null,"OK"]
[null,null,null,null,null,null,"L",null,null,null,null,null,"L",null,"OK"]
["Observations",null,null,null,null,null,null,null,null,null,null,null,null,null,""]
["Déplacement",{"$f":"COUNTIF(B97:B112,\"x\")/COUNTA($A$97:$A$112)","v":1},{"$f":"COUNTIF(C97:C112,\"x\")/COUNTA($A$97:$A$112)","v":0},0,0,0,{"$f":"IF(SUM(B96:F96)<>100%,\"D\",\"C\")","v":"C"},{"$f":"COUNTIF(H97:H112,\"x\")/COUNTA($A$97:$A$112)","v":0},{"$f":"COUNTIF(I97:I112,\"x\")/COUNTA($A$97:$A$112)","v":1},0,0,0,{"$f":"IF(SUM(H96:L96)<>100%,\"D\",\"C\")","v":"C"},null,""]
["Se déplacer dans des lieux connus","x",null,null,null,null,"J",null,"x",null,null,null,"J",null,""]
["Se déplacer dans des lieux inconnus","x",null,null,null,null,"J",null,"x",null,null,null,"J",null,""]
["Utiliser les moyens de transport en commun","x",null,null,null,null,"J",null,"x",null,null,null,"J",null,""]
[null,null,null,null,null,null,"L",null,null,null,null,null,"L",null,"OK"]
[null,null,null,null,null,null,"L",null,null,null,null,null,"L",null,"OK"]
[null,null,null,null,null,null,"L",null,null,null,null,null,"L",null,"OK"]
[null,null,null,null,null,null,"L",null,null,null,null,null,"L",null,"OK"]
[null,null,null,null,null,null,"L",null,null,null,null,null,"L",null,"OK"]
[null,null,null,null,null,null,"L",null,null,null,null,null,"L",null,"OK"]
[null,null,null,null,null,null,"L",null,null,null,null,null,"L",null,"OK"]
[null,null,null,null,null,null,"L",null,null,null,null,null,"L",null,"OK"]
[null,null,null,null,null,null,"L",null,null,null,null,null,"L",null,"OK"]
[null,null,null,null,null,null,"L",null,null,null,null,null,"L",null,"OK"]
[null,null,null,null,null,null,"L",null,null,null,null,null,"L",null,"OK"]
[null,null,null,null,null,null,"L",null,null,null,null,null,"L",null,"OK"]
[null,null,null,null,null,null,"L",null,null,null,null,null,"L",null,"OK"]
["Observations",null,null,null,null,null,null,null,null,null,null,null,null,null,""]
["Gestion administrative",{"$f":"COUNTIF(B115:B128,\"x\")/COUNTA($A$115:$A$128)","v":0},{"$f":"COUNTIF(C115:C128,\"x\")/COUNTA($A$115:$A$128)","v":0.5},0.25,0.25,0,{"$f":"IF(SUM(B114:F114)<>100%,\"D\",\"C\")","v":"C"},{"$f":"COUNTIF(H115:H128,\"x\")/COUNTA($A$115:$A$128)","v":0},{"$f":"COUNTIF(I115:I128,\"x\")/COUNTA($A$115:$A$128)","v":0.75},0.25,0,0,{"$f":"IF(SUM(H114:L114)<>100%,\"D\",\"C\")","v":"C"},null,""]
["Avoir ses papiers à jour",null,"x",null,null,null,"J",null,"x",null,null,null,"J",null,""]
["Reconnaître les différents documents administratifs",null,"x",null,null,null,"J",null,"x",null,null,null,"J",null,""]
["Savoir-faire seul une démarche administrative",null,null,"x",null,null,"J",null,"x",null,null,null,"J",null,""]
["Renouveler un document administratif seul",null,null,null,"x",null,"J",null,null,"x",null,null,"J",null,""]
[null,null,null,null,null,null,"L",null,null,null,null,null,"L",null,"OK"]
[null,null,null,null,null,null,"L",null,null,null,null,null,"L",null,"OK"]
[null,null,null,null,null,null,"L",null,null,null,null,null,"L",null,"OK"]
[null,null,null,null,null,null,"L",null,null,null,null,null,"L",null,"OK"]
[null,null,null,null,null,null,"L",null,null,null,null,null,"L",null,"OK"]
[null,null,null,null,null,null,"L",null,null,null,null,null,"L",null,"OK"]
[null,null,null,null,null,null,"L",null,null,null,null,null,"L",null,"OK"]
[null,null,null,null,null,null,"L",null,null,null,null,null,"L",null,"OK"]
[null,null,null,null,null,null,"L",null,null,null,null,null,"L",null,"OK"]
[null,null,null,null,null,null,"L",null,null,null,null,null,"L",null,"OK"]
["Observations",null,null,null,null,null,null,null,null,null,null,null,null,null,{"$f":"IF(A129<>\"\",\"\",\"OK\")","v":""}]
["Vie Sociale",{"$f":"COUNTIF(B131:B145,\"x\")/COUNTA($A$131:$A$145)","v":0},{"$f":"COUNTIF(C131:C145,\"x\")/COUNTA($A$131:$A$145)","v":0.81818181818181823},0,9.0909090909090912E-2,9.0909090909090912E-2,{"$f":"IF(SUM(B130:F130)<>100%,\"D\",\"C\")","v":"C"},{"$f":"COUNTIF(H131:H145,\"x\")/COUNTA($A$131:$A$145)","v":1},{"$f":"COUNTIF(I131:I145,\"x\")/COUNTA($A$131:$A$145)","v":0},0,0,0,{"$f":"IF(SUM(H130:L130)<>100%,\"D\",\"C\")","v":"C"},null,""]
["Echanger avec un environnement connu",null,"X",null,null,null,"J","x",null,null,null,null,"J",null,""]
["Echanger avec un environnement inconnu",null,"X",null,null,null,"J","x",null,null,null,null,"J",null,""]
["Construire une relation",null,"X",null,null,null,"J","x",null,null,null,null,"J",null,""]
["Entretenir et maintenir une relation",null,"X",null,null,null,"J","x",null,null,null,null,"J",null,""]
[" Rechercher et repérer  les personnes qui peuvent me soutenir dans mes démarches",null,null,null,"X",null,"J","x",null,null,null,null,"J",null,""]
["Demander de l'aide",null,"X",null,null,null,"J","x",null,null,null,null,"J",null,""]
["Choisir ses loisirs",null,"X",null,null,null,"J","x",null,null,null,null,"J",null,""]
["Gérer et organiser son temps libre",null,"X",null,null,null,"J","x",null,null,null,null,"J",null,""]
["Faire valoir ses droits",null,null,null,null,"X","J","x",null,null,null,null,"J",null,""]
["Utilisation des complexes socio-culturels",null,"X",null,null,null,"J","x",null,null,null,null,"J",null,""]
["Inscription à un club sportif",null,"X",null,null,null,"J","x",null,null,null,null,"J",null,""]
[null,null,null,null,null,null,{"$f":"IF(COUNTA(B142:F142)<>1,\"L\",\"J\")","v":"L"},null,null,null,null,null,{"$f":"IF(COUNTA(H142:L142)<>1,\"L\",\"J\")","v":"L"},null,"OK"]
[null,null,null,null,null,null,"L",null,null,null,null,null,"L",null,"OK"]
[null,null,null,null,null,null,"L",null,null,null,null,null,"L",null,"OK"]
[null,null,null,null,null,null,"L",null,null,null,null,null,"L",null,"OK"]
["Observations",null,null,null,null,null,null,null,null,null,null,null,null,null,""]
["Repère dans le temps",{"$f":"COUNTIF(B148:B169,\"x\")/COUNTA($A$148:$A$169)","v":0},{"$f":"COUNTIF(C148:C169,\"x\")/COUNTA($A$148:$A$169)","v":0},1,0,0,{"$f":"IF(SUM(B147:F147)<>100%,\"D\",\"C\")","v":"C"},{"$f":"COUNTIF(H148:H169,\"x\")/COUNTA($A$148:$A$169)","v":0.66666666666666663},{"$f":"COUNTIF(I148:I169,\"x\")/COUNTA($A$148:$A$169)","v":0.33333333333333331},0,0,0,{"$f":"IF(SUM(H147:L147)<>100%,\"D\",\"C\")","v":"C"},null,""]
["Connaître le système calendaire",null,null,"X",null,null,"J","X",null,null,null,null,"J",null,""]
["Connaître l’heure",null,null,"X",null,null,"J","X",null,null,null,null,"J",null,""]
["Se repérer dans l’espace- temps",null,null,"X",null,null,"J",null,"X",null,null,null,"J",null,""]
[null,null,null,null,null,null,"L",null,null,null,null,null,"L",null,"OK"]
[null,null,null,null,null,null,"L",null,null,null,null,null,"L",null,"OK"]
[null,null,null,null,null,null,"L",null,null,null,null,null,"L",null,"OK"]
[null,null,null,null,null,null,"L",null,null,null,null,null,"L",null,"OK"]
[null,null,null,null,null,null,"L",null,null,null,null,null,"L",null,"OK"]
[null,null,null,null,null,null,"L",null,null,null,null,null,"L",null,"OK"]
[null,null,null,null,null,null,"L",null,null,null,null,null,"L",null,"OK"]
[null,null,null,null,null,null,"L",null,null,null,null,null,"L",null,"OK"]
[null,null,null,null,null,null,"L",null,null,null,null,null,"L",null,"OK"]
[null,null,null,null,null,null,"L",null,null,null,null,null,"L",null,"OK"]
[null,null,null,null,null,null,"L",null,null,null,null,null,"L",null,"OK"]
[null,null,null,null,null,null,"L",null,null,null,null,null,"L",null,"OK"]
[null,null,null,null,null,null,"L",null,null,null,null,null,"L",null,"OK"]
[null,null,null,null,null,null,"L",null,null,null,null,null,"L",null,"OK"]
[null,null,null,null,null,null,"L",null,null,null,null,null,"L",null,"OK"]
[null,null,null,null,null,null,"L",null,null,null,null,null,"L",null,"OK"]
[null,null,null,null,null,null,"L",null,null,null,null,null,"L",null,"OK"]
[null,null,null,null,null,null,"L",null,null,null,null,null,"L",null,"OK"]
[null,null,null,null,null,null,"L",null,null,null,null,null,"L",null,"OK"]
["observations",null,null,null,null,null,null,null,null,null,null,null,null,null,""]
["Communication",{"$f":"COUNTIF(B172:B185,\"x\")/COUNTA($A$172:$A$185)","v":0.25},{"$f":"COUNTIF(C172:C185,\"x\")/COUNTA($A$172:$A$185)","v":0.75},0,0,0,{"$f":"IF(SUM(B171:F171)<>100%,\"D\",\"C\")","v":"C"},{"$f":"COUNTIF(H172:H185,\"x\")/COUNTA($A$172:$A$185)","v":0},{"$f":"COUNTIF(I172:I185,\"x\")/COUNTA($A$172:$A$185)","v":0.875},0.125,0,0,{"$f":"IF(SUM(H171:L171)<>100%,\"D\",\"C\")","v":"C"},null,""]
["Utiliser le langage verbal",null,"X",null,null,null,"J",null,"X",null,null,null,"J",null,""]
["Expliquer une situation complexe",null,"X",null,null,null,"J",null,null,"X",null,null,"J",null,""]
["Exprimer ses ressentis",null,"X",null,null,null,"J",null,"X",null,null,null,"J",null,""]
[" lire",null,"X",null,null,null,"J",null,"X",null,null,null,"J",null,""]
["Comprendre un document","X",null,null,null,null,"J",null,"X",null,null,null,"J",null,""]
[" écrire",null,"X",null,null,null,"J",null,"X",null,null,null,"J",null,""]
["Téléphoner",null,"X",null,null,null,"J",null,"X",null,null,null,"J",null,""]
["Utiliser un ordinateur","X",null,null,null,null,"J",null,"X",null,null,null,"J",null,""]
[null,null,null,null,null,null,"L",null,null,null,null,null,"L",null,"OK"]
[null,null,null,null,null,null,"L",null,null,null,null,null,"L",null,"OK"]
[null,null,null,null,null,null,"L",null,null,null,null,null,"L",null,"OK"]
[null,null,null,null,null,null,"L",null,null,null,null,null,"L",null,"OK"]
[null,null,null,null,null,null,"L",null,null,null,null,null,"L",null,"OK"]
[null,null,null,null,null,null,"L",null,null,null,null,null,"L",null,"OK"]
["Observations",null,null,null,null,null,null,null,null,null,null,null,null,null,""]
["Emploi",{"$f":"COUNTIF(B188:B206,\"x\")/COUNTA($A$188:$A$206)","v":0.33333333333333331},{"$f":"COUNTIF(C188:C206,\"x\")/COUNTA($A$188:$A$206)","v":0.66666666666666663},0,0,0,{"$f":"IF(SUM(B187:F187)<>100%,\"D\",\"C\")","v":"C"},{"$f":"COUNTIF(H188:H206,\"x\")/COUNTA($A$188:$A$206)","v":1},{"$f":"COUNTIF(I188:I206,\"x\")/COUNTA($A$188:$A$206)","v":0},0,0,0,{"$f":"IF(SUM(H187:L187)<>100%,\"D\",\"C\")","v":"C"},null,""]
["Rechercher un travail",null,"X",null,null,null,"J","X",null,null,null,null,"J",null,""]
["S’adapter à un emploi",null,"X",null,null,null,"J","X",null,null,null,null,"J",null,""]
["Se maintenir en emploi","X",null,null,null,null,"J","X",null,null,null,null,"J",null,""]
[null,null,null,null,null,null,"L",null,null,null,null,null,"L",null,"OK"]
[null,null,null,null,null,null,"L",null,null,null,null,null,"L",null,"OK"]
[null,null,null,null,null,null,"L",null,null,null,null,null,"L",null,"OK"]
[null,null,null,null,null,null,"L",null,null,null,null,null,"L",null,"OK"]
[null,null,null,null,null,null,"L",null,null,null,null,null,"L",null,"OK"]
[null,null,null,null,null,null,"L",null,null,null,null,null,"L",null,"OK"]
[null,null,null,null,null,null,"L",null,null,null,null,null,"L",null,"OK"]
[null,null,null,null,null,null,"L",null,null,null,null,null,"L",null,"OK"]
[null,null,null,null,null,null,"L",null,null,null,null,null,"L",null,"OK"]
[null,null,null,null,null,null,"L",null,null,null,null,null,"L",null,"OK"]
[null,null,null,null,null,null,"L",null,null,null,null,null,"L",null,"OK"]
[null,null,null,null,null,null,"L",null,null,null,null,null,"L",null,"OK"]
[null,null,null,null,null,null,"L",null,null,null,null,null,"L",null,"OK"]
[null,null,null,null,null,null,"L",null,null,null,null,null,"L",null,"OK"]
[null,null,null,null,null,null,"L",null,null,null,null,null,"L",null,"OK"]
[null,null,null,null,null,null,{"$f":"IF(COUNTA(B206:F206)<>1,\"L\",\"J\")","v":"L"},null,null,null,null,null,{"$f":"IF(COUNTA(H206:L206)<>1,\"L\",\"J\")","v":"L"},null,"OK"]
["Observations",null,null,null,null,null,null,null,null,null,null,null,null,null,""]
[]
[]
[]
[]
[]
[]
[]
[]
[]
[]
[]
[]
[]
[]
[]
[]
[]
[]
[]
[]
[]
[]
[null,null,null,null,null,null,null,{"$f":"\"items: \"","v":"items: "},"Santé"]
[]
[]
[]
[]
[]
[]
[]
[]
[]
[]
[]
[]
[]
[]
[]
[]
[]
[]
[]
[]
[null,"items: ","Communication",null,null,null,null,"items: ","Alimentation"]
[]
[]
[]
[]
[]
[]
[]
[]
[]
[]
[]
[]
[]
[]
[]
[]
[]
[]
[]
[]
[]
[]
[]
[]
[]
[]
[]
[]
[]
[]
[]
[]
[]
[]
[]
[]
[]
[]
[]
[]
[]
[]
[]
[]
[]
[]
[]
[]
[]
[]
[]
[]
[]
[]
[]
[]
[]
[]
[]
[]
[]
[]
[]
[]
[]
[]
[]
[]
[]
[]
[]
[]
[]
[]
[]
[]
[]
[]
[]
[]
[]
[]
[]
[]
[]
[]
[]
[]
[]
[]
[]
[]
[]
[]
[]
[]
[]
[]
[]
[]
[]
[]
[]
[]
[]
[]
[]
[]
[]
[]
[]
[]
[]
[]
[]
[]
[]
[]
[]
[]
[]
[]
[]
[]
[]
[]
[]
[]
[]
[]
[]
[]
[]
[]
[]
[]
[]
[]
[]
[]
[]
[]
[]
[]
[]
[]
[]
[]
[]
[]
[]
[]
[]
[]
[]
[]
[]
[]
[]
[]
[]
[]
[]
[]
[]
[]
[]
[null,{"$f":"B8","v":"Evaluation réalisée par Modèle Modèle"},null,null,null,null,null,{"$f":"H8","v":"Evaluation réalisée par Prénom Nom"}]
["Items","je suis autonome","il faut juste me le rappeler","j'ai besoin d'un coup de main","j'ai besoin d'une aide extérieure","Je ne suis pas concerné","Colonne1","Acquis","En cours d’acquis/stimulé ou soutenu","Acquis mais fluctuant en fonction du moment","Non acquis/ compensé","Pas concerné / pas évaluable"]
[{"$f":"A10","v":"Logement"},{"$f":"IF(B10<>0,B10,NA())","v":1},{"$f":"IF(C10<>0,C10,NA())","v":{"$error":"#N/A"}},{"$error":"#N/A"},{"$error":"#N/A"},{"$error":"#N/A"},null,{"$error":"#N/A"},1,{"$error":"#N/A"},{"$error":"#N/A"},{"$error":"#N/A"}]
[{"$f":"A27","v":"Alimentation"},{"$f":"IF(B27<>0,B27,NA())","v":1},{"$f":"IF(C27<>0,C27,NA())","v":{"$error":"#N/A"}},{"$error":"#N/A"},{"$error":"#N/A"},{"$error":"#N/A"},null,1,{"$error":"#N/A"},{"$error":"#N/A"},{"$error":"#N/A"},{"$error":"#N/A"}]
[{"$f":"A44","v":"Hygiène"},{"$f":"IF(B44<>0,B44,NA())","v":{"$error":"#N/A"}},{"$f":"IF(C44<>0,C44,NA())","v":1},{"$error":"#N/A"},{"$error":"#N/A"},{"$error":"#N/A"},null,{"$error":"#N/A"},1,{"$error":"#N/A"},{"$error":"#N/A"},{"$error":"#N/A"}]
[{"$f":"A61","v":"Santé"},{"$f":"IF(B61<>0,B61,NA())","v":{"$error":"#N/A"}},{"$f":"IF(C61<>0,C61,NA())","v":1},{"$error":"#N/A"},{"$error":"#N/A"},{"$error":"#N/A"},null,1,{"$error":"#N/A"},{"$error":"#N/A"},{"$error":"#N/A"},{"$error":"#N/A"}]
[{"$f":"A77","v":"Budget"},{"$f":"IF(B77<>0,B77,NA())","v":{"$error":"#N/A"}},{"$f":"IF(C77<>0,C77,NA())","v":1},{"$error":"#N/A"},{"$error":"#N/A"},{"$error":"#N/A"},null,1,{"$error":"#N/A"},{"$error":"#N/A"},{"$error":"#N/A"},{"$error":"#N/A"}]
[{"$f":"A96","v":"Déplacement"},{"$f":"IF(B96<>0,B96,NA())","v":1},{"$f":"IF(C96<>0,C96,NA())","v":{"$error":"#N/A"}},{"$error":"#N/A"},{"$error":"#N/A"},{"$error":"#N/A"},null,{"$error":"#N/A"},1,{"$error":"#N/A"},{"$error":"#N/A"},{"$error":"#N/A"}]
[{"$f":"A114","v":"Gestion administrative"},{"$f":"IF(B114<>0,B114,NA())","v":{"$error":"#N/A"}},{"$f":"IF(C114<>0,C114,NA())","v":0.5},0.25,0.25,{"$error":"#N/A"},null,{"$error":"#N/A"},0.75,0.25,{"$error":"#N/A"},{"$error":"#N/A"}]
[{"$f":"A130","v":"Vie Sociale"},{"$f":"IF(B130<>0,B130,NA())","v":{"$error":"#N/A"}},{"$f":"IF(C130<>0,C130,NA())","v":0.81818181818181823},{"$error":"#N/A"},9.0909090909090912E-2,9.0909090909090912E-2,null,1,{"$error":"#N/A"},{"$error":"#N/A"},{"$error":"#N/A"},{"$error":"#N/A"}]
[{"$f":"A147","v":"Repère dans le temps"},{"$f":"IF(B147<>0,B147,NA())","v":{"$error":"#N/A"}},{"$f":"IF(C147<>0,C147,NA())","v":{"$error":"#N/A"}},1,{"$error":"#N/A"},{"$error":"#N/A"},null,0.66666666666666663,0.33333333333333331,{"$error":"#N/A"},{"$error":"#N/A"},{"$error":"#N/A"}]
[{"$f":"A171","v":"Communication"},{"$f":"IF(B171<>0,B171,NA())","v":0.25},{"$f":"IF(C171<>0,C171,NA())","v":0.75},{"$error":"#N/A"},{"$error":"#N/A"},{"$error":"#N/A"},null,{"$error":"#N/A"},0.875,0.125,{"$error":"#N/A"},{"$error":"#N/A"}]
[{"$f":"A187","v":"Emploi"},{"$f":"IF(B187<>0,B187,NA())","v":0.33333333333333331},{"$f":"IF(C187<>0,C187,NA())","v":0.66666666666666663},{"$error":"#N/A"},{"$error":"#N/A"},{"$error":"#N/A"},null,1,{"$error":"#N/A"},{"$error":"#N/A"},{"$error":"#N/A"},{"$error":"#N/A"}]
[]
[]
[]
[null,{"$f":"B8","v":"Evaluation réalisée par Modèle Modèle"},null,null,null,null,null,{"$f":"H8","v":"Evaluation réalisée par Prénom Nom"}]
[null,{"$f":"Tableau22[[#Headers],[je suis autonome]]","v":"je suis autonome"},{"$f":"Tableau22[[#Headers],[il faut juste me le rappeler]]","v":"il faut juste me le rappeler"},{"$f":"Tableau22[[#Headers],[j''ai besoin d''un coup de main]]","v":"j'ai besoin d'un coup de main"},{"$f":"Tableau22[[#Headers],[j''ai besoin d''une aide extérieure]]","v":"j'ai besoin d'une aide extérieure"},{"$f":"Tableau22[[#Headers],[Je ne suis pas concerné]]","v":"Je ne suis pas concerné"},null,{"$f":"Tableau22[[#Headers],[Acquis]]","v":"Acquis"},{"$f":"Tableau22[[#Headers],[En cours d’acquis/stimulé ou soutenu]]","v":"En cours d’acquis/stimulé ou soutenu"},{"$f":"Tableau22[[#Headers],[Acquis mais fluctuant en fonction du moment]]","v":"Acquis mais fluctuant en fonction du moment"},{"$f":"Tableau22[[#Headers],[Non acquis/ compensé]]","v":"Non acquis/ compensé"},{"$f":"Tableau22[[#Headers],[Pas concerné / pas évaluable]]","v":"Pas concerné / pas évaluable"}]
[{"$f":"IF(INDEX(Tableau22[Items],MATCH($I$230,$A$421:$A$431,0))>0,INDEX(A421:A431,MATCH($I$230,$A$421:$A$431,0)),NA())","v":"Santé"},{"$f":"IF(INDEX(Tableau22[je suis autonome],MATCH($I$230,$A$421:$A$431,0))>0,INDEX(B421:B431,MATCH($I$230,$A$421:$A$431,0)),NA())","v":{"$error":"#N/A"}},{"$f":"IF(INDEX(Tableau22[il faut juste me le rappeler],MATCH($I$230,$A$421:$A$431,0))>0,INDEX(C421:C431,MATCH($I$230,$A$421:$A$431,0)),NA())","v":1},{"$f":"IF(INDEX(Tableau22[j''ai besoin d''un coup de main],MATCH($I$230,$A$421:$A$431,0))>0,INDEX(D421:D431,MATCH($I$230,$A$421:$A$431,0)),NA())","v":{"$error":"#N/A"}},{"$f":"IF(INDEX(Tableau22[j''ai besoin d''une aide extérieure],MATCH($I$230,$A$421:$A$431,0))>0,INDEX(E421:E431,MATCH($I$230,$A$421:$A$431,0)),NA())","v":{"$error":"#N/A"}},{"$f":"IF(INDEX(Tableau22[Je ne suis pas concerné],MATCH($I$230,$A$421:$A$431,0))>0,INDEX(F421:F431,MATCH($I$230,$A$421:$A$431,0)),NA())","v":{"$error":"#N/A"}},null,{"$f":"IF(INDEX(Tableau22[Acquis],MATCH($I$230,$A$421:$A$431,0))>0,INDEX(H421:H431,MATCH($I$230,$A$421:$A$431,0)),NA())","v":1},{"$f":"IF(INDEX(Tableau22[En cours d’acquis/stimulé ou soutenu],MATCH($I$230,$A$421:$A$431,0))>0,INDEX(I421:I431,MATCH($I$230,$A$421:$A$431,0)),NA())","v":{"$error":"#N/A"}},{"$f":"IF(INDEX(Tableau22[Acquis mais fluctuant en fonction du moment],MATCH($I$230,$A$421:$A$431,0))>0,INDEX(J421:J431,MATCH($I$230,$A$421:$A$431,0)),NA())","v":{"$error":"#N/A"}},{"$f":"IF(INDEX(Tableau22[Non acquis/ compensé],MATCH($I$230,$A$421:$A$431,0))>0,INDEX(K421:K431,MATCH($I$230,$A$421:$A$431,0)),NA())","v":{"$error":"#N/A"}},{"$f":"IF(INDEX(Tableau22[Pas concerné / pas évaluable],MATCH($I$230,$A$421:$A$431,0))>0,INDEX(L421:L431,MATCH($I$230,$A$421:$A$431,0)),NA())","v":{"$error":"#N/A"}}]
[{"$f":"IF(INDEX(Tableau22[Items],MATCH($C$251,$A$421:$A$431,0))>0,INDEX(A421:A431,MATCH($C$251,$A$421:$A$431,0)),NA())","v":"Communication"},{"$f":"IF(INDEX(Tableau22[je suis autonome],MATCH($C$251,$A$421:$A$431,0))>0,INDEX(B421:B431,MATCH($C$251,$A$421:$A$431,0)),NA())","v":0.25},{"$f":"IF(INDEX(Tableau22[il faut juste me le rappeler],MATCH($C$251,$A$421:$A$431,0))>0,INDEX(C421:C431,MATCH($C$251,$A$421:$A$431,0)),NA())","v":0.75},{"$f":"IF(INDEX(Tableau22[j''ai besoin d''un coup de main],MATCH($C$251,$A$421:$A$431,0))>0,INDEX(D421:D431,MATCH($C$251,$A$421:$A$431,0)),NA())","v":{"$error":"#N/A"}},{"$f":"IF(INDEX(Tableau22[j''ai besoin d''une aide extérieure],MATCH($C$251,$A$421:$A$431,0))>0,INDEX(E421:E431,MATCH($C$251,$A$421:$A$431,0)),NA())","v":{"$error":"#N/A"}},{"$f":"IF(INDEX(Tableau22[Je ne suis pas concerné],MATCH($C$251,$A$421:$A$431,0))>0,INDEX(F421:F431,MATCH($C$251,$A$421:$A$431,0)),NA())","v":{"$error":"#N/A"}},null,{"$f":"IF(INDEX(Tableau22[Acquis],MATCH($C$251,$A$421:$A$431,0))>0,INDEX(H421:H431,MATCH($C$251,$A$421:$A$431,0)),NA())","v":{"$error":"#N/A"}},{"$f":"IF(INDEX(Tableau22[En cours d’acquis/stimulé ou soutenu],MATCH($C$251,$A$421:$A$431,0))>0,INDEX(I421:I431,MATCH($C$251,$A$421:$A$431,0)),NA())","v":0.875},{"$f":"IF(INDEX(Tableau22[Acquis mais fluctuant en fonction du moment],MATCH($C$251,$A$421:$A$431,0))>0,INDEX(J421:J431,MATCH($C$251,$A$421:$A$431,0)),NA())","v":0.125},{"$f":"IF(INDEX(Tableau22[Non acquis/ compensé],MATCH($C$251,$A$421:$A$431,0))>0,INDEX(K421:K431,MATCH($C$251,$A$421:$A$431,0)),NA())","v":{"$error":"#N/A"}},{"$f":"IF(INDEX(Tableau22[Pas concerné / pas évaluable],MATCH($C$251,$A$421:$A$431,0))>0,INDEX(L421:L431,MATCH($C$251,$A$421:$A$431,0)),NA())","v":{"$error":"#N/A"}}]
[{"$f":"IF(INDEX(Tableau22[Items],MATCH($I$251,$A$421:$A$431,0))>0,INDEX(A421:A431,MATCH($I$251,$A$421:$A$431,0)),NA())","v":"Alimentation"},{"$f":"IF(INDEX(Tableau22[je suis autonome],MATCH($I$251,$A$421:$A$431,0))>0,INDEX(B421:B431,MATCH($I$251,$A$421:$A$431,0)),NA())","v":1},{"$f":"IF(INDEX(Tableau22[il faut juste me le rappeler],MATCH($I$251,$A$421:$A$431,0))>0,INDEX(C421:C431,MATCH($I$251,$A$421:$A$431,0)),NA())","v":{"$error":"#N/A"}},{"$f":"IF(INDEX(Tableau22[j''ai besoin d''un coup de main],MATCH($I$251,$A$421:$A$431,0))>0,INDEX(D421:D431,MATCH($I$251,$A$421:$A$431,0)),NA())","v":{"$error":"#N/A"}},{"$f":"IF(INDEX(Tableau22[j''ai besoin d''une aide extérieure],MATCH($I$251,$A$421:$A$431,0))>0,INDEX(E421:E431,MATCH($I$251,$A$421:$A$431,0)),NA())","v":{"$error":"#N/A"}},{"$f":"IF(INDEX(Tableau22[Je ne suis pas concerné],MATCH($I$251,$A$421:$A$431,0))>0,INDEX(F421:F431,MATCH($I$251,$A$421:$A$431,0)),NA())","v":{"$error":"#N/A"}},{"$f":"IF(INDEX(Tableau22[Colonne1],MATCH($I$251,$A$421:$A$431,0))>0,INDEX(G421:G431,MATCH($I$251,$A$421:$A$431,0)),NA())","v":{"$error":"#N/A"}},{"$f":"IF(INDEX(Tableau22[Acquis],MATCH($I$251,$A$421:$A$431,0))>0,INDEX(H421:H431,MATCH($I$251,$A$421:$A$431,0)),NA())","v":1},{"$f":"IF(INDEX(Tableau22[En cours d’acquis/stimulé ou soutenu],MATCH($I$251,$A$421:$A$431,0))>0,INDEX(I421:I431,MATCH($I$251,$A$421:$A$431,0)),NA())","v":{"$error":"#N/A"}},{"$f":"IF(INDEX(Tableau22[Acquis mais fluctuant en fonction du moment],MATCH($I$251,$A$421:$A$431,0))>0,INDEX(J421:J431,MATCH($I$251,$A$421:$A$431,0)),NA())","v":{"$error":"#N/A"}},{"$f":"IF(INDEX(Tableau22[Non acquis/ compensé],MATCH($I$251,$A$421:$A$431,0))>0,INDEX(K421:K431,MATCH($I$251,$A$421:$A$431,0)),NA())","v":{"$error":"#N/A"}},{"$f":"IF(INDEX(Tableau22[Pas concerné / pas évaluable],MATCH($I$251,$A$421:$A$431,0))>0,INDEX(L421:L431,MATCH($I$251,$A$421:$A$431,0)),NA())","v":{"$error":"#N/A"}}]

{"sheet":"Monique","index":1,"n_rows":439,"n_cols":15,"rows_kept":439,"cut":false,"hidden":false,"merged":[]}
["Personne Accompagnée",null,"Jean",null,null,null,null,null,null,null,null,null,null,null,{"$f":"IF(A1<>\"\",\"\",\"OK\")","v":""}]
["Accompagnateur","Prénom","Nom",null,null,null,null,null,null,null,null,null,null,null,""]
[null,null,null,null,null,null,null,null,null,null,null,null,null,null,"OK"]
[null,null,null,null,null,null,null,null,null,null,null,null,null,null,"OK"]
[null,null,null,null,null,null,null,null,null,null,null,null,null,null,"OK"]
[null,null,null,null,null,null,null,null,null,null,null,null,null,null,"OK"]
[null,null,null,null,null,null,null,null,null,null,null,null,null,null,"OK"]
[null,{"$f":"\"Evaluation réalisée par \"&B1&\" \"&C1","v":"Evaluation réalisée par  Jean"},null,null,null,null,null,{"$f":"\"Evaluation réalisée par \"&B2&\" \"&C2","v":"Evaluation réalisée par Prénom Nom"}]
[{"$f":"IF(B1=C1,C1,B1&\" \"&C1)","v":" Jean"},"je suis autonome","il faut juste me le rappeler","j'ai besoin d'un coup de main","j'ai besoin d'une aide extérieure","Je ne suis pas concerné",null,"Acquis","En cours d’acquis/stimulé ou soutenu","Acquis mais fluctuant en fonction du moment","Non acquis/ compensé","Pas concerné / pas évaluable",null,"écart et commentaires",""]
["Logement",{"$f":"COUNTIF(B11:B25,\"x\")/COUNTA($A$11:$A$25)","v":0.5},{"$f":"COUNTIF(C11:C25,\"x\")/COUNTA($A$11:$A$25)","v":0},0.25,0,0,{"$f":"IF(SUM(B10:F10)<>100%,\"D\",\"C\")","v":"D"},{"$f":"COUNTIF(H11:H25,\"x\")/COUNTA($A$11:$A$25)","v":0},{"$f":"COUNTIF(I11:I25,\"x\")/COUNTA($A$11:$A$25)","v":1},0,0,0,{"$f":"IF(SUM(H10:L10)<>100%,\"D\",\"C\")","v":"C"},null,""]
["Gérer l’entretien de son logement",null,null,"x",null,null,{"$f":"IF(COUNTA(B11:F11)<>1,\"L\",\"J\")","v":"J"},null,"x",null,null,null,{"$f":"IF(COUNTA(H11:L11)<>1,\"L\",\"J\")","v":"J"},null,""]
["Investir son logement","x",null,null,null,null,{"$f":"IF(COUNTA(B12:F12)<>1,\"L\",\"J\")","v":"J"},null,"x",null,null,null,{"$f":"IF(COUNTA(H12:L12)<>1,\"L\",\"J\")","v":"J"},null,""]
["Réagir en cas d’imprévu (ou de difficultés)",null,null,null,null,null,"L",null,"x",null,null,null,"J",null,""]
["Relativiser les difficultés dans le logement","x",null,null,null,null,"J",null,"x",null,null,null,"J",null,""]
[null,null,null,null,null,null,"L",null,null,null,null,null,"L",null,"OK"]
[null,null,null,null,null,null,"L",null,null,null,null,null,"L",null,"OK"]
[null,null,null,null,null,null,"L",null,null,null,null,null,"L",null,"OK"]
[null,null,null,null,null,null,"L",null,null,null,null,null,"L",null,"OK"]
[null,null,null,null,null,null,"L",null,null,null,null,null,"L",null,"OK"]
[null,null,null,null,null,null,"L",null,null,null,null,null,"L",null,"OK"]
[null,null,null,null,null,null,"L",null,null,null,null,null,"L",null,"OK"]
[null,null,null,null,null,null,"L",null,null,null,null,null,"L",null,"OK"]
[null,null,null,null,null,null,"L",null,null,null,null,null,"L",null,"OK"]
[null,null,null,null,null,null,"L",null,null,null,null,null,"L",null,"OK"]
[null,null,null,null,null,null,"L",null,null,null,null,null,"L",null,"OK"]
["Observations",null,null,null,null,null,null,null,null,null,null,null,null,null,""]
["Alimentation",{"$f":"COUNTIF(B28:B31,\"x\")/4","v":1},{"$f":"COUNTIF(C28:C42,\"x\")/COUNTA($A$28:$A$42)","v":0},{"$f":"COUNTIF(D28:D42,\"x\")/COUNTA($A$28:$A$42)","v":0},0,0,{"$f":"IF(SUM(B27:F27)<>100%,\"D\",\"C\")","v":"C"},1,0,0,0,0,{"$f":"IF(SUM(H27:L27)<>100%,\"D\",\"C\")","v":"C"},null,""]
["Savoir faire un menu varié et équilibré ","x",null,null,null,null,"J","x",null,null,null,null,"J",null,""]
["Etablir une liste de courses","x",null,null,null,null,"J","x",null,null,null,null,"J",null,""]
["Respecter un budget alimentaire ","x",null,null,null,null,"J","x",null,null,null,null,"J",null,""]
["Préparer son repas ","x",null,null,null,null,"J","x",null,null,null,null,"J",null,""]
[null,null,null,null,null,null,"L",null,null,null,null,null,"L",null,"OK"]
[null,null,null,null,null,null,"L",null,null,null,null,null,"L",null,"OK"]
[null,null,null,null,null,null,"L",null,null,null,null,null,"L",null,"OK"]
[null,null,null,null,null,null,"L",null,null,null,null,null,"L",null,"OK"]
[null,null,null,null,null,null,"L",null,null,null,null,null,"L",null,"OK"]
[null,null,null,null,null,null,"L",null,null,null,null,null,"L",null,"OK"]
[null,null,null,null,null,null,"L",null,null,null,null,null,"L",null,"OK"]
[null,null,null,null,null,null,"L",null,null,null,null,null,"L",null,"OK"]
[null,null,null,null,null,null,"L",null,null,null,null,null,"L",null,"OK"]
[null,null,null,null,null,null,"L",null,null,null,null,null,"L",null,"OK"]
[null,null,null,null,null,null,"L",null,null,null,null,null,"L",null,"OK"]
["Observations",null,null,null,null,null,null,null,null,null,null,null,null,null,""]
["Hygiène",{"$f":"COUNTIF(B45:B59,\"x\")/COUNTA($A$45:$A$59)","v":0},{"$f":"COUNTIF(C45:C59,\"x\")/COUNTA($A$45:$A$59)","v":1},0,0,0,{"$f":"IF(SUM(B44:F44)<>100%,\"D\",\"C\")","v":"C"},{"$f":"COUNTIF(H45:H59,\"x\")/COUNTA($A$45:$A$59)","v":0},{"$f":"COUNTIF(I45:I59,\"x\")/COUNTA($A$45:$A$59)","v":1},0,0,0,{"$f":"IF(SUM(H44:L44)<>100%,\"D\",\"C\")","v":"C"},null,""]
["Savoir gérer son linge",null,"x",null,null,null,"J",null,"x",null,null,null,"J",null,""]
["Porter une attention à son hygiene corporelle",null,"x",null,null,null,"J",null,"x",null,null,null,"J",null,""]
["Porter une attention à sa tenue vestimentaire",null,"x",null,null,null,"J",null,"x",null,null,null,"J",null,""]
[null,null,null,null,null,null,"L",null,null,null,null,null,"L",null,"OK"]
[null,null,null,null,null,null,"L",null,null,null,null,null,"L",null,"OK"]
[null,null,null,null,null,null,"L",null,null,null,null,null,"L",null,"OK"]
[null,null,null,null,null,null,"L",null,null,null,null,null,"L",null,"OK"]
[null,null,null,null,null,null,"L",null,null,null,null,null,"L",null,"OK"]
[null,null,null,null,null,null,"L",null,null,null,null,null,"L",null,"OK"]
[null,null,null,null,null,null,"L",null,null,null,null,null,"L",null,"OK"]
[null,null,null,null,null,null,"L",null,null,null,null,null,"L",null,"OK"]
[null,null,null,null,null,null,"L",null,null,null,null,null,"L",null,"OK"]
[null,null,null,null,null,null,"L",null,null,null,null,null,"L",null,"OK"]
[null,null,null,null,null,null,"L",null,null,null,null,null,"L",null,"OK"]
[null,null,null,null,null,null,"L",null,null,null,null,null,"L",null,"OK"]
["Observations",null,null,null,null,null,null,null,null,null,null,null,null,null,""]
["Santé",{"$f":"COUNTIF(B62:B75,\"x\")/COUNTA($A$62:$A$75)","v":0},{"$f":"COUNTIF(C62:C75,\"x\")/COUNTA($A$62:$A$75)","v":1},0,0,0,{"$f":"IF(SUM(B61:F61)<>100%,\"D\",\"C\")","v":"C"},{"$f":"COUNTIF(H62:H75,\"x\")/COUNTA($A$62:$A$75)","v":1},{"$f":"COUNTIF(I62:I75,\"x\")/COUNTA($A$62:$A$75)","v":0},0,0,0,{"$f":"IF(SUM(H61:L61)<>100%,\"D\",\"C\")","v":"C"},null,""]
["Savoir prendre seul son traitement médical régulièrement",null,"x",null,null,null,"J","x",null,null,null,null,"J",null,""]
["Etre conscient de son état de santé",null,"x",null,null,null,"J","x",null,null,null,null,"J",null,""]
["Gérer ses RDV médicaux",null,"x",null,null,null,"J","x",null,null,null,null,"J",null,""]
["Gérer ses Rdv médicaux avec un spécialiste",null,"x",null,null,null,"J","x",null,null,null,null,"J",null,{"$f":"IF(A65<>\"\",\"\",\"OK\")","v":""}]
["Adapter son hygiène de vie à son état de santé",null,"x",null,null,null,"J","x",null,null,null,null,"J",null,""]
["Se rendre à la pharmacie",null,"x",null,null,null,"J","x",null,null,null,null,"J",null,""]
["Savoir appeler du secours",null,"x",null,null,null,"J","x",null,null,null,null,"J",null,""]
["Savoir se soigner en cas de petite blessure",null,"x",null,null,null,"J","x",null,null,null,null,"J",null,""]
[null,null,null,null,null,null,"L",null,null,null,null,null,"L",null,"OK"]
[null,null,null,null,null,null,"L",null,null,null,null,null,"L",null,"OK"]
[null,null,null,null,null,null,"L",null,null,null,null,null,"L",null,"OK"]
[null,null,null,null,null,null,"L",null,null,null,null,null,"L",null,"OK"]
[null,null,null,null,null,null,"L",null,null,null,null,null,"L",null,"OK"]
[null,null,null,null,null,null,"L",null,null,null,null,null,"L",null,"OK"]
["Observations",null,null,null,null,null,null,null,null,null,null,null,null,null,""]
["Budget",{"$f":"COUNTIF(B78:B94,\"x\")/COUNTA($A$78:$A$94)","v":0},{"$f":"COUNTIF(C78:C94,\"x\")/COUNTA($A$78:$A$94)","v":1},0,0,0,{"$f":"IF(SUM(B77:F77)<>100%,\"D\",\"C\")","v":"C"},{"$f":"COUNTIF(H78:H94,\"x\")/COUNTA($A$78:$A$94)","v":1},{"$f":"COUNTIF(I78:I94,\"x\")/COUNTA($A$78:$A$94)","v":0},0,0,0,{"$f":"IF(SUM(H77:L77)<>100%,\"D\",\"C\")","v":"C"},null,""]
["Savoir compter son argent",null,"x",null,null,null,{"$f":"IF(COUNTA(B78:F78)<>1,\"L\",\"J\")","v":"J"},"x",null,null,null,null,{"$f":"IF(COUNTA(H78:L78)<>1,\"L\",\"J\")","v":"J"},null,""]
["Reconnaître les billets et pièces",null,"x",null,null,null,"J","x",null,null,null,null,"J",null,""]
["Avoir la notion de l’argent",null,"x",null,null,null,"J","x",null,null,null,null,"J",null,""]
["Respecter un budget ",null,"x",null,null,null,"J","x",null,null,null,null,"J",null,""]
["Savoir se mettre en relation en cas de difficultés",null,"x",null,null,null,"J","x",null,null,null,null,"J",null,""]
["Savoir anticiper ses dépenses futures",null,"x",null,null,null,"J","x",null,null,null,null,"J",null,""]
["Connaître son budget mensuel (charge fixe)",null,"x",null,null,null,"J","x",null,null,null,null,"J",null,""]
[null,null,null,null,null,null,"L",null,null,null,null,null,"L",null,"OK"]
[null,null,null,null,null,null,"L",null,null,null,null,null,"L",null,"OK"]
[null,null,null,null,null,null,"L",null,null,null,null,null,"L",null,"OK"]
[null,null,null,null,null,null,"L",null,null,null,null,null,"L",null,"OK"]
[null,null,null,null,null,null,"L",null,null,null,null,null,"L",null,"OK"]
[null,null,null,null,null,null,"L",null,null,null,null,null,"L",null,"OK"]
[null,null,null,null,null,null,"L",null,null,null,null,null,"L",null,"OK"]
[null,null,null,null,null,null,"L",null,null,null,null,null,"L",null,"OK"]
[null,null,null,null,null,null,"L",null,null,null,null,null,"L",null,"OK"]
[null,null,null,null,null,null,"L",null,null,null,null,null,"L",null,"OK"]
["Observations",null,null,null,null,null,null,null,null,null,null,null,null,null,""]
["Déplacement",{"$f":"COUNTIF(B97:B112,\"x\")/COUNTA($A$97:$A$112)","v":1},{"$f":"COUNTIF(C97:C112,\"x\")/COUNTA($A$97:$A$112)","v":0},0,0,0,{"$f":"IF(SUM(B96:F96)<>100%,\"D\",\"C\")","v":"C"},{"$f":"COUNTIF(H97:H112,\"x\")/COUNTA($A$97:$A$112)","v":0},{"$f":"COUNTIF(I97:I112,\"x\")/COUNTA($A$97:$A$112)","v":1},0,0,0,{"$f":"IF(SUM(H96:L96)<>100%,\"D\",\"C\")","v":"C"},null,""]
["Se déplacer dans des lieux connus","x",null,null,null,null,"J",null,"x",null,null,null,"J",null,""]
["Se déplacer dans des lieux inconnus","x",null,null,null,null,"J",null,"x",null,null,null,"J",null,""]
["Utiliser les moyens de transport en commun","x",null,null,null,null,"J",null,"x",null,null,null,"J",null,""]
[null,null,null,null,null,null,"L",null,null,null,null,null,"L",null,"OK"]
[null,null,null,null,null,null,"L",null,null,null,null,null,"L",null,"OK"]
[null,null,null,null,null,null,"L",null,null,null,null,null,"L",null,"OK"]
[null,null,null,null,null,null,"L",null,null,null,null,null,"L",null,"OK"]
[null,null,null,null,null,null,"L",null,null,null,null,null,"L",null,"OK"]
[null,null,null,null,null,null,"L",null,null,null,null,null,"L",null,"OK"]
[null,null,null,null,null,null,"L",null,null,null,null,null,"L",null,"OK"]
[null,null,null,null,null,null,"L",null,null,null,null,null,"L",null,"OK"]
[null,null,null,null,null,null,"L",null,null,null,null,null,"L",null,"OK"]
[null,null,null,null,null,null,"L",null,null,null,null,null,"L",null,"OK"]
[null,null,null,null,null,null,"L",null,null,null,null,null,"L",null,"OK"]
[null,null,null,null,null,null,"L",null,null,null,null,null,"L",null,"OK"]
[null,null,null,null,null,null,"L",null,null,null,null,null,"L",null,"OK"]
["Observations",null,null,null,null,null,null,null,null,null,null,null,null,null,""]
["Gestion administrative",{"$f":"COUNTIF(B115:B128,\"x\")/COUNTA($A$115:$A$128)","v":0},{"$f":"COUNTIF(C115:C128,\"x\")/COUNTA($A$115:$A$128)","v":0.5},0.25,0.25,0,{"$f":"IF(SUM(B114:F114)<>100%,\"D\",\"C\")","v":"C"},{"$f":"COUNTIF(H115:H128,\"x\")/COUNTA($A$115:$A$128)","v":0},{"$f":"COUNTIF(I115:I128,\"x\")/COUNTA($A$115:$A$128)","v":0.75},0.25,0,0,{"$f":"IF(SUM(H114:L114)<>100%,\"D\",\"C\")","v":"C"},null,""]
["Avoir ses papiers à jour",null,"x",null,null,null,"J",null,"x",null,null,null,"J",null,""]
["Reconnaître les différents documents administratifs",null,"x",null,null,null,"J",null,"x",null,null,null,"J",null,""]
["Savoir-faire seul une démarche administrative",null,null,"x",null,null,"J",null,"x",null,null,null,"J",null,""]
["Renouveler un document administratif seul",null,null,null,"x",null,"J",null,null,"x",null,null,"J",null,""]
[null,null,null,null,null,null,"L",null,null,null,null,null,"L",null,"OK"]
[null,null,null,null,null,null,"L",null,null,null,null,null,"L",null,"OK"]
[null,null,null,null,null,null,"L",null,null,null,null,null,"L",null,"OK"]
[null,null,null,null,null,null,"L",null,null,null,null,null,"L",null,"OK"]
[null,null,null,null,null,null,"L",null,null,null,null,null,"L",null,"OK"]
[null,null,null,null,null,null,"L",null,null,null,null,null,"L",null,"OK"]
[null,null,null,null,null,null,"L",null,null,null,null,null,"L",null,"OK"]
[null,null,null,null,null,null,"L",null,null,null,null,null,"L",null,"OK"]
[null,null,null,null,null,null,"L",null,null,null,null,null,"L",null,"OK"]
[null,null,null,null,null,null,"L",null,null,null,null,null,"L",null,"OK"]
["Observations",null,null,null,null,null,null,null,null,null,null,null,null,null,{"$f":"IF(A129<>\"\",\"\",\"OK\")","v":""}]
["Vie Sociale",{"$f":"COUNTIF(B131:B145,\"x\")/COUNTA($A$131:$A$145)","v":0},{"$f":"COUNTIF(C131:C145,\"x\")/COUNTA($A$131:$A$145)","v":0.81818181818181823},0,9.0909090909090912E-2,9.0909090909090912E-2,{"$f":"IF(SUM(B130:F130)<>100%,\"D\",\"C\")","v":"C"},{"$f":"COUNTIF(H131:H145,\"x\")/COUNTA($A$131:$A$145)","v":1},{"$f":"COUNTIF(I131:I145,\"x\")/COUNTA($A$131:$A$145)","v":0},0,0,0,{"$f":"IF(SUM(H130:L130)<>100%,\"D\",\"C\")","v":"C"},null,""]
["Echanger avec un environnement connu",null,"X",null,null,null,"J","x",null,null,null,null,"J",null,""]
["Echanger avec un environnement inconnu",null,"X",null,null,null,"J","x",null,null,null,null,"J",null,""]
["Construire une relation",null,"X",null,null,null,"J","x",null,null,null,null,"J",null,""]
["Entretenir et maintenir une relation",null,"X",null,null,null,"J","x",null,null,null,null,"J",null,""]
[" Rechercher et repérer  les personnes qui peuvent me soutenir dans mes démarches",null,null,null,"X",null,"J","x",null,null,null,null,"J",null,""]
["Demander de l'aide",null,"X",null,null,null,"J","x",null,null,null,null,"J",null,""]
["Choisir ses loisirs",null,"X",null,null,null,"J","x",null,null,null,null,"J",null,""]
["Gérer et organiser son temps libre",null,"X",null,null,null,"J","x",null,null,null,null,"J",null,""]
["Faire valoir ses droits",null,null,null,null,"X","J","x",null,null,null,null,"J",null,""]
["Utilisation des complexes socio-culturels",null,"X",null,null,null,"J","x",null,null,null,null,"J",null,""]
["Inscription à un club sportif",null,"X",null,null,null,"J","x",null,null,null,null,"J",null,""]
[null,null,null,null,null,null,{"$f":"IF(COUNTA(B142:F142)<>1,\"L\",\"J\")","v":"L"},null,null,null,null,null,{"$f":"IF(COUNTA(H142:L142)<>1,\"L\",\"J\")","v":"L"},null,"OK"]
[null,null,null,null,null,null,"L",null,null,null,null,null,"L",null,"OK"]
[null,null,null,null,null,null,"L",null,null,null,null,null,"L",null,"OK"]
[null,null,null,null,null,null,"L",null,null,null,null,null,"L",null,"OK"]
["Observations",null,null,null,null,null,null,null,null,null,null,null,null,null,""]
["Repère dans le temps",{"$f":"COUNTIF(B148:B169,\"x\")/COUNTA($A$148:$A$169)","v":0},{"$f":"COUNTIF(C148:C169,\"x\")/COUNTA($A$148:$A$169)","v":0},1,0,0,{"$f":"IF(SUM(B147:F147)<>100%,\"D\",\"C\")","v":"C"},{"$f":"COUNTIF(H148:H169,\"x\")/COUNTA($A$148:$A$169)","v":0.66666666666666663},{"$f":"COUNTIF(I148:I169,\"x\")/COUNTA($A$148:$A$169)","v":0.33333333333333331},0,0,0,{"$f":"IF(SUM(H147:L147)<>100%,\"D\",\"C\")","v":"C"},null,""]
["Connaître le système calendaire",null,null,"X",null,null,"J","X",null,null,null,null,"J",null,""]
["Connaître l’heure",null,null,"X",null,null,"J","X",null,null,null,null,"J",null,""]
["Se repérer dans l’espace- temps",null,null,"X",null,null,"J",null,"X",null,null,null,"J",null,""]
[null,null,null,null,null,null,"L",null,null,null,null,null,"L",null,"OK"]
[null,null,null,null,null,null,"L",null,null,null,null,null,"L",null,"OK"]
[null,null,null,null,null,null,"L",null,null,null,null,null,"L",null,"OK"]
[null,null,null,null,null,null,"L",null,null,null,null,null,"L",null,"OK"]
[null,null,null,null,null,null,"L",null,null,null,null,null,"L",null,"OK"]
[null,null,null,null,null,null,"L",null,null,null,null,null,"L",null,"OK"]
[null,null,null,null,null,null,"L",null,null,null,null,null,"L",null,"OK"]
[null,null,null,null,null,null,"L",null,null,null,null,null,"L",null,"OK"]
[null,null,null,null,null,null,"L",null,null,null,null,null,"L",null,"OK"]
[null,null,null,null,null,null,"L",null,null,null,null,null,"L",null,"OK"]
[null,null,null,null,null,null,"L",null,null,null,null,null,"L",null,"OK"]
[null,null,null,null,null,null,"L",null,null,null,null,null,"L",null,"OK"]
[null,null,null,null,null,null,"L",null,null,null,null,null,"L",null,"OK"]
[null,null,null,null,null,null,"L",null,null,null,null,null,"L",null,"OK"]
[null,null,null,null,null,null,"L",null,null,null,null,null,"L",null,"OK"]
[null,null,null,null,null,null,"L",null,null,null,null,null,"L",null,"OK"]
[null,null,null,null,null,null,"L",null,null,null,null,null,"L",null,"OK"]
[null,null,null,null,null,null,"L",null,null,null,null,null,"L",null,"OK"]
[null,null,null,null,null,null,"L",null,null,null,null,null,"L",null,"OK"]
["observations",null,null,null,null,null,null,null,null,null,null,null,null,null,""]
["Communication",{"$f":"COUNTIF(B172:B185,\"x\")/COUNTA($A$172:$A$185)","v":0.25},{"$f":"COUNTIF(C172:C185,\"x\")/COUNTA($A$172:$A$185)","v":0.75},0,0,0,{"$f":"IF(SUM(B171:F171)<>100%,\"D\",\"C\")","v":"C"},{"$f":"COUNTIF(H172:H185,\"x\")/COUNTA($A$172:$A$185)","v":0},{"$f":"COUNTIF(I172:I185,\"x\")/COUNTA($A$172:$A$185)","v":0.875},0.125,0,0,{"$f":"IF(SUM(H171:L171)<>100%,\"D\",\"C\")","v":"C"},null,""]
["Utiliser le langage verbal",null,"X",null,null,null,"J",null,"X",null,null,null,"J",null,""]
["Expliquer une situation complexe",null,"X",null,null,null,"J",null,null,"X",null,null,"J",null,""]
["Exprimer ses ressentis",null,"X",null,null,null,"J",null,"X",null,null,null,"J",null,""]
[" lire",null,"X",null,null,null,"J",null,"X",null,null,null,"J",null,""]
["Comprendre un document","X",null,null,null,null,"J",null,"X",null,null,null,"J",null,""]
[" écrire",null,"X",null,null,null,"J",null,"X",null,null,null,"J",null,""]
["Téléphoner",null,"X",null,null,null,"J",null,"X",null,null,null,"J",null,""]
["Utiliser un ordinateur","X",null,null,null,null,"J",null,"X",null,null,null,"J",null,""]
[null,null,null,null,null,null,"L",null,null,null,null,null,"L",null,"OK"]
[null,null,null,null,null,null,"L",null,null,null,null,null,"L",null,"OK"]
[null,null,null,null,null,null,"L",null,null,null,null,null,"L",null,"OK"]
[null,null,null,null,null,null,"L",null,null,null,null,null,"L",null,"OK"]
[null,null,null,null,null,null,"L",null,null,null,null,null,"L",null,"OK"]
[null,null,null,null,null,null,"L",null,null,null,null,null,"L",null,"OK"]
["Observations",null,null,null,null,null,null,null,null,null,null,null,null,null,""]
["Emploi",{"$f":"COUNTIF(B188:B206,\"x\")/COUNTA($A$188:$A$206)","v":0.33333333333333331},{"$f":"COUNTIF(C188:C206,\"x\")/COUNTA($A$188:$A$206)","v":0.66666666666666663},0,0,0,{"$f":"IF(SUM(B187:F187)<>100%,\"D\",\"C\")","v":"C"},{"$f":"COUNTIF(H188:H206,\"x\")/COUNTA($A$188:$A$206)","v":1},{"$f":"COUNTIF(I188:I206,\"x\")/COUNTA($A$188:$A$206)","v":0},0,0,0,{"$f":"IF(SUM(H187:L187)<>100%,\"D\",\"C\")","v":"C"},null,""]
["Rechercher un travail",null,"X",null,null,null,"J","X",null,null,null,null,"J",null,""]
["S’adapter à un emploi",null,"X",null,null,null,"J","X",null,null,null,null,"J",null,""]
["Se maintenir en emploi","X",null,null,null,null,"J","X",null,null,null,null,"J",null,""]
[null,null,null,null,null,null,"L",null,null,null,null,null,"L",null,"OK"]
[null,null,null,null,null,null,"L",null,null,null,null,null,"L",null,"OK"]
[null,null,null,null,null,null,"L",null,null,null,null,null,"L",null,"OK"]
[null,null,null,null,null,null,"L",null,null,null,null,null,"L",null,"OK"]
[null,null,null,null,null,null,"L",null,null,null,null,null,"L",null,"OK"]
[null,null,null,null,null,null,"L",null,null,null,null,null,"L",null,"OK"]
[null,null,null,null,null,null,"L",null,null,null,null,null,"L",null,"OK"]
[null,null,null,null,null,null,"L",null,null,null,null,null,"L",null,"OK"]
[null,null,null,null,null,null,"L",null,null,null,null,null,"L",null,"OK"]
[null,null,null,null,null,null,"L",null,null,null,null,null,"L",null,"OK"]
[null,null,null,null,null,null,"L",null,null,null,null,null,"L",null,"OK"]
[null,null,null,null,null,null,"L",null,null,null,null,null,"L",null,"OK"]
[null,null,null,null,null,null,"L",null,null,null,null,null,"L",null,"OK"]
[null,null,null,null,null,null,"L",null,null,null,null,null,"L",null,"OK"]
[null,null,null,null,null,null,"L",null,null,null,null,null,"L",null,"OK"]
[null,null,null,null,null,null,{"$f":"IF(COUNTA(B206:F206)<>1,\"L\",\"J\")","v":"L"},null,null,null,null,null,{"$f":"IF(COUNTA(H206:L206)<>1,\"L\",\"J\")","v":"L"},null,"OK"]
["Observations",null,null,null,null,null,null,null,null,null,null,null,null,null,""]
[]
[]
[]
[]
[]
[]
[]
[]
[]
[]
[]
[]
[]
[]
[]
[]
[]
[]
[]
[]
[]
[]
[null,null,null,null,null,null,null,{"$f":"\"items: \"","v":"items: "},"Santé"]
[]
[]
[]
[]
[]
[]
[]
[]
[]
[]
[]
[]
[]
[]
[]
[]
[]
[]
[]
[]
[null,"items: ","Communication",null,null,null,null,"items: ","Alimentation"]
[]
[]
[]
[]
[]
[]
[]
[]
[]
[]
[]
[]
[]
[]
[]
[]
[]
[]
[]
[]
[]
[]
[]
[]
[]
[]
[]
[]
[]
[]
[]
[]
[]
[]
[]
[]
[]
[]
[]
[]
[]
[]
[]
[]
[]
[]
[]
[]
[]
[]
[]
[]
[]
[]
[]
[]
[]
[]
[]
[]
[]
[]
[]
[]
[]
[]
[]
[]
[]
[]
[]
[]
[]
[]
[]
[]
[]
[]
[]
[]
[]
[]
[]
[]
[]
[]
[]
[]
[]
[]
[]
[]
[]
[]
[]
[]
[]
[]
[]
[]
[]
[]
[]
[]
[]
[]
[]
[]
[]
[]
[]
[]
[]
[]
[]
[]
[]
[]
[]
[]
[]
[]
[]
[]
[]
[]
[]
[]
[]
[]
[]
[]
[]
[]
[]
[]
[]
[]
[]
[]
[]
[]
[]
[]
[]
[]
[]
[]
[]
[]
[]
[]
[]
[]
[]
[]
[]
[]
[]
[]
[]
[]
[]
[]
[]
[]
[]
[null,{"$f":"B8","v":"Evaluation réalisée par  Jean"},null,null,null,null,null,{"$f":"H8","v":"Evaluation réalisée par Prénom Nom"}]
["Items","je suis autonome","il faut juste me le rappeler","j'ai besoin d'un coup de main","j'ai besoin d'une aide extérieure","Je ne suis pas concerné","Colonne1","Acquis","En cours d’acquis/stimulé ou soutenu","Acquis mais fluctuant en fonction du moment","Non acquis/ compensé","Pas concerné / pas évaluable"]
[{"$f":"A10","v":"Logement"},{"$f":"IF(B10<>0,B10,NA())","v":0.5},{"$f":"IF(C10<>0,C10,NA())","v":{"$error":"#N/A"}},0.25,{"$error":"#N/A"},{"$error":"#N/A"},null,{"$error":"#N/A"},1,{"$error":"#N/A"},{"$error":"#N/A"},{"$error":"#N/A"}]
[{"$f":"A27","v":"Alimentation"},{"$f":"IF(B27<>0,B27,NA())","v":1},{"$f":"IF(C27<>0,C27,NA())","v":{"$error":"#N/A"}},{"$error":"#N/A"},{"$error":"#N/A"},{"$error":"#N/A"},null,1,{"$error":"#N/A"},{"$error":"#N/A"},{"$error":"#N/A"},{"$error":"#N/A"}]
[{"$f":"A44","v":"Hygiène"},{"$f":"IF(B44<>0,B44,NA())","v":{"$error":"#N/A"}},{"$f":"IF(C44<>0,C44,NA())","v":1},{"$error":"#N/A"},{"$error":"#N/A"},{"$error":"#N/A"},null,{"$error":"#N/A"},1,{"$error":"#N/A"},{"$error":"#N/A"},{"$error":"#N/A"}]
[{"$f":"A61","v":"Santé"},{"$f":"IF(B61<>0,B61,NA())","v":{"$error":"#N/A"}},{"$f":"IF(C61<>0,C61,NA())","v":1},{"$error":"#N/A"},{"$error":"#N/A"},{"$error":"#N/A"},null,1,{"$error":"#N/A"},{"$error":"#N/A"},{"$error":"#N/A"},{"$error":"#N/A"}]
[{"$f":"A77","v":"Budget"},{"$f":"IF(B77<>0,B77,NA())","v":{"$error":"#N/A"}},{"$f":"IF(C77<>0,C77,NA())","v":1},{"$error":"#N/A"},{"$error":"#N/A"},{"$error":"#N/A"},null,1,{"$error":"#N/A"},{"$error":"#N/A"},{"$error":"#N/A"},{"$error":"#N/A"}]
[{"$f":"A96","v":"Déplacement"},{"$f":"IF(B96<>0,B96,NA())","v":1},{"$f":"IF(C96<>0,C96,NA())","v":{"$error":"#N/A"}},{"$error":"#N/A"},{"$error":"#N/A"},{"$error":"#N/A"},null,{"$error":"#N/A"},1,{"$error":"#N/A"},{"$error":"#N/A"},{"$error":"#N/A"}]
[{"$f":"A114","v":"Gestion administrative"},{"$f":"IF(B114<>0,B114,NA())","v":{"$error":"#N/A"}},{"$f":"IF(C114<>0,C114,NA())","v":0.5},0.25,0.25,{"$error":"#N/A"},null,{"$error":"#N/A"},0.75,0.25,{"$error":"#N/A"},{"$error":"#N/A"}]
[{"$f":"A130","v":"Vie Sociale"},{"$f":"IF(B130<>0,B130,NA())","v":{"$error":"#N/A"}},{"$f":"IF(C130<>0,C130,NA())","v":0.81818181818181823},{"$error":"#N/A"},9.0909090909090912E-2,9.0909090909090912E-2,null,1,{"$error":"#N/A"},{"$error":"#N/A"},{"$error":"#N/A"},{"$error":"#N/A"}]
[{"$f":"A147","v":"Repère dans le temps"},{"$f":"IF(B147<>0,B147,NA())","v":{"$error":"#N/A"}},{"$f":"IF(C147<>0,C147,NA())","v":{"$error":"#N/A"}},1,{"$error":"#N/A"},{"$error":"#N/A"},null,0.66666666666666663,0.33333333333333331,{"$error":"#N/A"},{"$error":"#N/A"},{"$error":"#N/A"}]
[{"$f":"A171","v":"Communication"},{"$f":"IF(B171<>0,B171,NA())","v":0.25},{"$f":"IF(C171<>0,C171,NA())","v":0.75},{"$error":"#N/A"},{"$error":"#N/A"},{"$error":"#N/A"},null,{"$error":"#N/A"},0.875,0.125,{"$error":"#N/A"},{"$error":"#N/A"}]
[{"$f":"A187","v":"Emploi"},{"$f":"IF(B187<>0,B187,NA())","v":0.33333333333333331},{"$f":"IF(C187<>0,C187,NA())","v":0.66666666666666663},{"$error":"#N/A"},{"$error":"#N/A"},{"$error":"#N/A"},null,1,{"$error":"#N/A"},{"$error":"#N/A"},{"$error":"#N/A"},{"$error":"#N/A"}]
[]
[]
[]
[null,{"$f":"B8","v":"Evaluation réalisée par  Jean"},null,null,null,null,null,{"$f":"H8","v":"Evaluation réalisée par Prénom Nom"}]
[null,{"$f":"Tableau224[[#Headers],[je suis autonome]]","v":"je suis autonome"},{"$f":"Tableau224[[#Headers],[il faut juste me le rappeler]]","v":"il faut juste me le rappeler"},{"$f":"Tableau224[[#Headers],[j''ai besoin d''un coup de main]]","v":"j'ai besoin d'un coup de main"},{"$f":"Tableau224[[#Headers],[j''ai besoin d''une aide extérieure]]","v":"j'ai besoin d'une aide extérieure"},{"$f":"Tableau224[[#Headers],[Je ne suis pas concerné]]","v":"Je ne suis pas concerné"},null,{"$f":"Tableau224[[#Headers],[Acquis]]","v":"Acquis"},{"$f":"Tableau224[[#Headers],[En cours d’acquis/stimulé ou soutenu]]","v":"En cours d’acquis/stimulé ou soutenu"},{"$f":"Tableau224[[#Headers],[Acquis mais fluctuant en fonction du moment]]","v":"Acquis mais fluctuant en fonction du moment"},{"$f":"Tableau224[[#Headers],[Non acquis/ compensé]]","v":"Non acquis/ compensé"},{"$f":"Tableau224[[#Headers],[Pas concerné / pas évaluable]]","v":"Pas concerné / pas évaluable"}]
[{"$f":"IF(INDEX(Tableau224[Items],MATCH($I$230,$A$421:$A$431,0))>0,INDEX(A421:A431,MATCH($I$230,$A$421:$A$431,0)),NA())","v":"Santé"},{"$f":"IF(INDEX(Tableau224[je suis autonome],MATCH($I$230,$A$421:$A$431,0))>0,INDEX(B421:B431,MATCH($I$230,$A$421:$A$431,0)),NA())","v":{"$error":"#N/A"}},{"$f":"IF(INDEX(Tableau224[il faut juste me le rappeler],MATCH($I$230,$A$421:$A$431,0))>0,INDEX(C421:C431,MATCH($I$230,$A$421:$A$431,0)),NA())","v":1},{"$f":"IF(INDEX(Tableau224[j''ai besoin d''un coup de main],MATCH($I$230,$A$421:$A$431,0))>0,INDEX(D421:D431,MATCH($I$230,$A$421:$A$431,0)),NA())","v":{"$error":"#N/A"}},{"$f":"IF(INDEX(Tableau224[j''ai besoin d''une aide extérieure],MATCH($I$230,$A$421:$A$431,0))>0,INDEX(E421:E431,MATCH($I$230,$A$421:$A$431,0)),NA())","v":{"$error":"#N/A"}},{"$f":"IF(INDEX(Tableau224[Je ne suis pas concerné],MATCH($I$230,$A$421:$A$431,0))>0,INDEX(F421:F431,MATCH($I$230,$A$421:$A$431,0)),NA())","v":{"$error":"#N/A"}},null,{"$f":"IF(INDEX(Tableau224[Acquis],MATCH($I$230,$A$421:$A$431,0))>0,INDEX(H421:H431,MATCH($I$230,$A$421:$A$431,0)),NA())","v":1},{"$f":"IF(INDEX(Tableau224[En cours d’acquis/stimulé ou soutenu],MATCH($I$230,$A$421:$A$431,0))>0,INDEX(I421:I431,MATCH($I$230,$A$421:$A$431,0)),NA())","v":{"$error":"#N/A"}},{"$f":"IF(INDEX(Tableau224[Acquis mais fluctuant en fonction du moment],MATCH($I$230,$A$421:$A$431,0))>0,INDEX(J421:J431,MATCH($I$230,$A$421:$A$431,0)),NA())","v":{"$error":"#N/A"}},{"$f":"IF(INDEX(Tableau224[Non acquis/ compensé],MATCH($I$230,$A$421:$A$431,0))>0,INDEX(K421:K431,MATCH($I$230,$A$421:$A$431,0)),NA())","v":{"$error":"#N/A"}},{"$f":"IF(INDEX(Tableau224[Pas concerné / pas évaluable],MATCH($I$230,$A$421:$A$431,0))>0,INDEX(L421:L431,MATCH($I$230,$A$421:$A$431,0)),NA())","v":{"$error":"#N/A"}}]
[{"$f":"IF(INDEX(Tableau224[Items],MATCH($C$251,$A$421:$A$431,0))>0,INDEX(A421:A431,MATCH($C$251,$A$421:$A$431,0)),NA())","v":"Communication"},{"$f":"IF(INDEX(Tableau224[je suis autonome],MATCH($C$251,$A$421:$A$431,0))>0,INDEX(B421:B431,MATCH($C$251,$A$421:$A$431,0)),NA())","v":0.25},{"$f":"IF(INDEX(Tableau224[il faut juste me le rappeler],MATCH($C$251,$A$421:$A$431,0))>0,INDEX(C421:C431,MATCH($C$251,$A$421:$A$431,0)),NA())","v":0.75},{"$f":"IF(INDEX(Tableau224[j''ai besoin d''un coup de main],MATCH($C$251,$A$421:$A$431,0))>0,INDEX(D421:D431,MATCH($C$251,$A$421:$A$431,0)),NA())","v":{"$error":"#N/A"}},{"$f":"IF(INDEX(Tableau224[j''ai besoin d''une aide extérieure],MATCH($C$251,$A$421:$A$431,0))>0,INDEX(E421:E431,MATCH($C$251,$A$421:$A$431,0)),NA())","v":{"$error":"#N/A"}},{"$f":"IF(INDEX(Tableau224[Je ne suis pas concerné],MATCH($C$251,$A$421:$A$431,0))>0,INDEX(F421:F431,MATCH($C$251,$A$421:$A$431,0)),NA())","v":{"$error":"#N/A"}},null,{"$f":"IF(INDEX(Tableau224[Acquis],MATCH($C$251,$A$421:$A$431,0))>0,INDEX(H421:H431,MATCH($C$251,$A$421:$A$431,0)),NA())","v":{"$error":"#N/A"}},{"$f":"IF(INDEX(Tableau224[En cours d’acquis/stimulé ou soutenu],MATCH($C$251,$A$421:$A$431,0))>0,INDEX(I421:I431,MATCH($C$251,$A$421:$A$431,0)),NA())","v":0.875},{"$f":"IF(INDEX(Tableau224[Acquis mais fluctuant en fonction du moment],MATCH($C$251,$A$421:$A$431,0))>0,INDEX(J421:J431,MATCH($C$251,$A$421:$A$431,0)),NA())","v":0.125},{"$f":"IF(INDEX(Tableau224[Non acquis/ compensé],MATCH($C$251,$A$421:$A$431,0))>0,INDEX(K421:K431,MATCH($C$251,$A$421:$A$431,0)),NA())","v":{"$error":"#N/A"}},{"$f":"IF(INDEX(Tableau224[Pas concerné / pas évaluable],MATCH($C$251,$A$421:$A$431,0))>0,INDEX(L421:L431,MATCH($C$251,$A$421:$A$431,0)),NA())","v":{"$error":"#N/A"}}]
[{"$f":"IF(INDEX(Tableau224[Items],MATCH($I$251,$A$421:$A$431,0))>0,INDEX(A421:A431,MATCH($I$251,$A$421:$A$431,0)),NA())","v":"Alimentation"},{"$f":"IF(INDEX(Tableau224[je suis autonome],MATCH($I$251,$A$421:$A$431,0))>0,INDEX(B421:B431,MATCH($I$251,$A$421:$A$431,0)),NA())","v":1},{"$f":"IF(INDEX(Tableau224[il faut juste me le rappeler],MATCH($I$251,$A$421:$A$431,0))>0,INDEX(C421:C431,MATCH($I$251,$A$421:$A$431,0)),NA())","v":{"$error":"#N/A"}},{"$f":"IF(INDEX(Tableau224[j''ai besoin d''un coup de main],MATCH($I$251,$A$421:$A$431,0))>0,INDEX(D421:D431,MATCH($I$251,$A$421:$A$431,0)),NA())","v":{"$error":"#N/A"}},{"$f":"IF(INDEX(Tableau224[j''ai besoin d''une aide extérieure],MATCH($I$251,$A$421:$A$431,0))>0,INDEX(E421:E431,MATCH($I$251,$A$421:$A$431,0)),NA())","v":{"$error":"#N/A"}},{"$f":"IF(INDEX(Tableau224[Je ne suis pas concerné],MATCH($I$251,$A$421:$A$431,0))>0,INDEX(F421:F431,MATCH($I$251,$A$421:$A$431,0)),NA())","v":{"$error":"#N/A"}},{"$f":"IF(INDEX(Tableau224[Colonne1],MATCH($I$251,$A$421:$A$431,0))>0,INDEX(G421:G431,MATCH($I$251,$A$421:$A$431,0)),NA())","v":{"$error":"#N/A"}},{"$f":"IF(INDEX(Tableau224[Acquis],MATCH($I$251,$A$421:$A$431,0))>0,INDEX(H421:H431,MATCH($I$251,$A$421:$A$431,0)),NA())","v":1},{"$f":"IF(INDEX(Tableau224[En cours d’acquis/stimulé ou soutenu],MATCH($I$251,$A$421:$A$431,0))>0,INDEX(I421:I431,MATCH($I$251,$A$421:$A$431,0)),NA())","v":{"$error":"#N/A"}},{"$f":"IF(INDEX(Tableau224[Acquis mais fluctuant en fonction du moment],MATCH($I$251,$A$421:$A$431,0))>0,INDEX(J421:J431,MATCH($I$251,$A$421:$A$431,0)),NA())","v":{"$error":"#N/A"}},{"$f":"IF(INDEX(Tableau224[Non acquis/ compensé],MATCH($I$251,$A$421:$A$431,0))>0,INDEX(K421:K431,MATCH($I$251,$A$421:$A$431,0)),NA())","v":{"$error":"#N/A"}},{"$f":"IF(INDEX(Tableau224[Pas concerné / pas évaluable],MATCH($I$251,$A$421:$A$431,0))>0,INDEX(L421:L431,MATCH($I$251,$A$421:$A$431,0)),NA())","v":{"$error":"#N/A"}}]

{"sheet":" Albert","index":2,"n_rows":439,"n_cols":15,"rows_kept":439,"cut":false,"hidden":false,"merged":[]}
["Personne Accompagnée",null,"Albert",null,null,null,null,null,null,null,null,null,null,null,{"$f":"IF(A1<>\"\",\"\",\"OK\")","v":""}]
["Accompagnateur","Prénom","Nom",null,null,null,null,null,null,null,null,null,null,null,""]
[null,null,null,null,null,null,null,null,null,null,null,null,null,null,"OK"]
[null,null,null,null,null,null,null,null,null,null,null,null,null,null,"OK"]
[null,null,null,null,null,null,null,null,null,null,null,null,null,null,"OK"]
[null,null,null,null,null,null,null,null,null,null,null,null,null,null,"OK"]
[null,null,null,null,null,null,null,null,null,null,null,null,null,null,"OK"]
[null,{"$f":"\"Evaluation réalisée par \"&B1&\" \"&C1","v":"Evaluation réalisée par  Albert"},null,null,null,null,null,{"$f":"\"Evaluation réalisée par \"&B2&\" \"&C2","v":"Evaluation réalisée par Prénom Nom"}]
[{"$f":"IF(B1=C1,C1,B1&\" \"&C1)","v":" Albert"},"je suis autonome","il faut juste me le rappeler","j'ai besoin d'un coup de main","j'ai besoin d'une aide extérieure","Je ne suis pas concerné",null,"Acquis","En cours d’acquis/stimulé ou soutenu","Acquis mais fluctuant en fonction du moment","Non acquis/ compensé","Pas concerné / pas évaluable",null,"écart et commentaires",""]
["Logement",{"$f":"COUNTIF(B11:B25,\"x\")/COUNTA($A$11:$A$25)","v":0.75},{"$f":"COUNTIF(C11:C25,\"x\")/COUNTA($A$11:$A$25)","v":0.25},0,0,0,{"$f":"IF(SUM(B10:F10)<>100%,\"D\",\"C\")","v":"C"},{"$f":"COUNTIF(H11:H25,\"x\")/COUNTA($A$11:$A$25)","v":0},{"$f":"COUNTIF(I11:I25,\"x\")/COUNTA($A$11:$A$25)","v":1},0,0,0,{"$f":"IF(SUM(H10:L10)<>100%,\"D\",\"C\")","v":"C"},null,""]
["Gérer l’entretien de son logement",null,"x",null,null,null,{"$f":"IF(COUNTA(B11:F11)<>1,\"L\",\"J\")","v":"J"},null,"x",null,null,null,{"$f":"IF(COUNTA(H11:L11)<>1,\"L\",\"J\")","v":"J"},null,""]
["Investir son logement","x",null,null,null,null,{"$f":"IF(COUNTA(B12:F12)<>1,\"L\",\"J\")","v":"J"},null,"x",null,null,null,{"$f":"IF(COUNTA(H12:L12)<>1,\"L\",\"J\")","v":"J"},null,""]
["Réagir en cas d’imprévu (ou de difficultés)","x",null,null,null,null,"J",null,"x",null,null,null,"J",null,""]
["Relativiser les difficultés dans le logement","x",null,null,null,null,"J",null,"x",null,null,null,"J",null,""]
[null,null,null,null,null,null,"L",null,null,null,null,null,"L",null,"OK"]
[null,null,null,null,null,null,"L",null,null,null,null,null,"L",null,"OK"]
[null,null,null,null,null,null,"L",null,null,null,null,null,"L",null,"OK"]
[null,null,null,null,null,null,"L",null,null,null,null,null,"L",null,"OK"]
[null,null,null,null,null,null,"L",null,null,null,null,null,"L",null,"OK"]
[null,null,null,null,null,null,"L",null,null,null,null,null,"L",null,"OK"]
[null,null,null,null,null,null,"L",null,null,null,null,null,"L",null,"OK"]
[null,null,null,null,null,null,"L",null,null,null,null,null,"L",null,"OK"]
[null,null,null,null,null,null,"L",null,null,null,null,null,"L",null,"OK"]
[null,null,null,null,null,null,"L",null,null,null,null,null,"L",null,"OK"]
[null,null,null,null,null,null,"L",null,null,null,null,null,"L",null,"OK"]
["Observations",null,null,null,null,null,null,null,null,null,null,null,null,null,""]
["Alimentation",{"$f":"COUNTIF(B28:B31,\"x\")/4","v":1},{"$f":"COUNTIF(C28:C42,\"x\")/COUNTA($A$28:$A$42)","v":0},{"$f":"COUNTIF(D28:D42,\"x\")/COUNTA($A$28:$A$42)","v":0},0,0,{"$f":"IF(SUM(B27:F27)<>100%,\"D\",\"C\")","v":"C"},1,0,0,0,0,{"$f":"IF(SUM(H27:L27)<>100%,\"D\",\"C\")","v":"C"},null,""]
["Savoir faire un menu varié et équilibré ","x",null,null,null,null,"J","x",null,null,null,null,"J",null,""]
["Etablir une liste de courses","x",null,null,null,null,"J","x",null,null,null,null,"J",null,""]
["Respecter un budget alimentaire ","x",null,null,null,null,"J","x",null,null,null,null,"J",null,""]
["Préparer son repas ","x",null,null,null,null,"J","x",null,null,null,null,"J",null,""]
[null,null,null,null,null,null,"L",null,null,null,null,null,"L",null,"OK"]
[null,null,null,null,null,null,"L",null,null,null,null,null,"L",null,"OK"]
[null,null,null,null,null,null,"L",null,null,null,null,null,"L",null,"OK"]
[null,null,null,null,null,null,"L",null,null,null,null,null,"L",null,"OK"]
[null,null,null,null,null,null,"L",null,null,null,null,null,"L",null,"OK"]
[null,null,null,null,null,null,"L",null,null,null,null,null,"L",null,"OK"]
[null,null,null,null,null,null,"L",null,null,null,null,null,"L",null,"OK"]
[null,null,null,null,null,null,"L",null,null,null,null,null,"L",null,"OK"]
[null,null,null,null,null,null,"L",null,null,null,null,null,"L",null,"OK"]
[null,null,null,null,null,null,"L",null,null,null,null,null,"L",null,"OK"]
[null,null,null,null,null,null,"L",null,null,null,null,null,"L",null,"OK"]
["Observations",null,null,null,null,null,null,null,null,null,null,null,null,null,""]
["Hygiène",{"$f":"COUNTIF(B45:B59,\"x\")/COUNTA($A$45:$A$59)","v":0},{"$f":"COUNTIF(C45:C59,\"x\")/COUNTA($A$45:$A$59)","v":1},0,0,0,{"$f":"IF(SUM(B44:F44)<>100%,\"D\",\"C\")","v":"C"},{"$f":"COUNTIF(H45:H59,\"x\")/COUNTA($A$45:$A$59)","v":0},{"$f":"COUNTIF(I45:I59,\"x\")/COUNTA($A$45:$A$59)","v":1},0,0,0,{"$f":"IF(SUM(H44:L44)<>100%,\"D\",\"C\")","v":"C"},null,""]
["Savoir gérer son linge",null,"x",null,null,null,"J",null,"x",null,null,null,"J",null,""]
["Porter une attention à son hygiene corporelle",null,"x",null,null,null,"J",null,"x",null,null,null,"J",null,""]
["Porter une attention à sa tenue vestimentaire",null,"x",null,null,null,"J",null,"x",null,null,null,"J",null,""]
[null,null,null,null,null,null,"L",null,null,null,null,null,"L",null,"OK"]
[null,null,null,null,null,null,"L",null,null,null,null,null,"L",null,"OK"]
[null,null,null,null,null,null,"L",null,null,null,null,null,"L",null,"OK"]
[null,null,null,null,null,null,"L",null,null,null,null,null,"L",null,"OK"]
[null,null,null,null,null,null,"L",null,null,null,null,null,"L",null,"OK"]
[null,null,null,null,null,null,"L",null,null,null,null,null,"L",null,"OK"]
[null,null,null,null,null,null,"L",null,null,null,null,null,"L",null,"OK"]
[null,null,null,null,null,null,"L",null,null,null,null,null,"L",null,"OK"]
[null,null,null,null,null,null,"L",null,null,null,null,null,"L",null,"OK"]
[null,null,null,null,null,null,"L",null,null,null,null,null,"L",null,"OK"]
[null,null,null,null,null,null,"L",null,null,null,null,null,"L",null,"OK"]
[null,null,null,null,null,null,"L",null,null,null,null,null,"L",null,"OK"]
["Observations",null,null,null,null,null,null,null,null,null,null,null,null,null,""]
["Santé",{"$f":"COUNTIF(B62:B75,\"x\")/COUNTA($A$62:$A$75)","v":0},{"$f":"COUNTIF(C62:C75,\"x\")/COUNTA($A$62:$A$75)","v":1},0,0,0,{"$f":"IF(SUM(B61:F61)<>100%,\"D\",\"C\")","v":"C"},{"$f":"COUNTIF(H62:H75,\"x\")/COUNTA($A$62:$A$75)","v":1},{"$f":"COUNTIF(I62:I75,\"x\")/COUNTA($A$62:$A$75)","v":0},0,0,0,{"$f":"IF(SUM(H61:L61)<>100%,\"D\",\"C\")","v":"C"},null,""]
["Savoir prendre seul son traitement médical régulièrement",null,"x",null,null,null,"J","x",null,null,null,null,"J",null,""]
["Etre conscient de son état de santé",null,"x",null,null,null,"J","x",null,null,null,null,"J",null,""]
["Gérer ses RDV médicaux",null,"x",null,null,null,"J","x",null,null,null,null,"J",null,""]
["Gérer ses Rdv médicaux avec un spécialiste",null,"x",null,null,null,"J","x",null,null,null,null,"J",null,{"$f":"IF(A65<>\"\",\"\",\"OK\")","v":""}]
["Adapter son hygiène de vie à son état de santé",null,"x",null,null,null,"J","x",null,null,null,null,"J",null,""]
["Se rendre à la pharmacie",null,"x",null,null,null,"J","x",null,null,null,null,"J",null,""]
["Savoir appeler du secours",null,"x",null,null,null,"J","x",null,null,null,null,"J",null,""]
["Savoir se soigner en cas de petite blessure",null,"x",null,null,null,"J","x",null,null,null,null,"J",null,""]
[null,null,null,null,null,null,"L",null,null,null,null,null,"L",null,"OK"]
[null,null,null,null,null,null,"L",null,null,null,null,null,"L",null,"OK"]
[null,null,null,null,null,null,"L",null,null,null,null,null,"L",null,"OK"]
[null,null,null,null,null,null,"L",null,null,null,null,null,"L",null,"OK"]
[null,null,null,null,null,null,"L",null,null,null,null,null,"L",null,"OK"]
[null,null,null,null,null,null,"L",null,null,null,null,null,"L",null,"OK"]
["Observations",null,null,null,null,null,null,null,null,null,null,null,null,null,""]
["Budget",{"$f":"COUNTIF(B78:B94,\"x\")/COUNTA($A$78:$A$94)","v":0},{"$f":"COUNTIF(C78:C94,\"x\")/COUNTA($A$78:$A$94)","v":1},0,0,0,{"$f":"IF(SUM(B77:F77)<>100%,\"D\",\"C\")","v":"C"},{"$f":"COUNTIF(H78:H94,\"x\")/COUNTA($A$78:$A$94)","v":1},{"$f":"COUNTIF(I78:I94,\"x\")/COUNTA($A$78:$A$94)","v":0},0,0,0,{"$f":"IF(SUM(H77:L77)<>100%,\"D\",\"C\")","v":"C"},null,""]
["Savoir compter son argent",null,"x",null,null,null,{"$f":"IF(COUNTA(B78:F78)<>1,\"L\",\"J\")","v":"J"},"x",null,null,null,null,{"$f":"IF(COUNTA(H78:L78)<>1,\"L\",\"J\")","v":"J"},null,""]
["Reconnaître les billets et pièces",null,"x",null,null,null,"J","x",null,null,null,null,"J",null,""]
["Avoir la notion de l’argent",null,"x",null,null,null,"J","x",null,null,null,null,"J",null,""]
["Respecter un budget ",null,"x",null,null,null,"J","x",null,null,null,null,"J",null,""]
["Savoir se mettre en relation en cas de difficultés",null,"x",null,null,null,"J","x",null,null,null,null,"J",null,""]
["Savoir anticiper ses dépenses futures",null,"x",null,null,null,"J","x",null,null,null,null,"J",null,""]
["Connaître son budget mensuel (charge fixe)",null,"x",null,null,null,"J","x",null,null,null,null,"J",null,""]
[null,null,null,null,null,null,"L",null,null,null,null,null,"L",null,"OK"]
[null,null,null,null,null,null,"L",null,null,null,null,null,"L",null,"OK"]
[null,null,null,null,null,null,"L",null,null,null,null,null,"L",null,"OK"]
[null,null,null,null,null,null,"L",null,null,null,null,null,"L",null,"OK"]
[null,null,null,null,null,null,"L",null,null,null,null,null,"L",null,"OK"]
[null,null,null,null,null,null,"L",null,null,null,null,null,"L",null,"OK"]
[null,null,null,null,null,null,"L",null,null,null,null,null,"L",null,"OK"]
[null,null,null,null,null,null,"L",null,null,null,null,null,"L",null,"OK"]
[null,null,null,null,null,null,"L",null,null,null,null,null,"L",null,"OK"]
[null,null,null,null,null,null,"L",null,null,null,null,null,"L",null,"OK"]
["Observations",null,null,null,null,null,null,null,null,null,null,null,null,null,""]
["Déplacement",{"$f":"COUNTIF(B97:B112,\"x\")/COUNTA($A$97:$A$112)","v":1},{"$f":"COUNTIF(C97:C112,\"x\")/COUNTA($A$97:$A$112)","v":0},0,0,0,{"$f":"IF(SUM(B96:F96)<>100%,\"D\",\"C\")","v":"C"},{"$f":"COUNTIF(H97:H112,\"x\")/COUNTA($A$97:$A$112)","v":0},{"$f":"COUNTIF(I97:I112,\"x\")/COUNTA($A$97:$A$112)","v":1},0,0,0,{"$f":"IF(SUM(H96:L96)<>100%,\"D\",\"C\")","v":"C"},null,""]
["Se déplacer dans des lieux connus","x",null,null,null,null,"J",null,"x",null,null,null,"J",null,""]
["Se déplacer dans des lieux inconnus","x",null,null,null,null,"J",null,"x",null,null,null,"J",null,""]
["Utiliser les moyens de transport en commun","x",null,null,null,null,"J",null,"x",null,null,null,"J",null,""]
[null,null,null,null,null,null,"L",null,null,null,null,null,"L",null,"OK"]
[null,null,null,null,null,null,"L",null,null,null,null,null,"L",null,"OK"]
[null,null,null,null,null,null,"L",null,null,null,null,null,"L",null,"OK"]
[null,null,null,null,null,null,"L",null,null,null,null,null,"L",null,"OK"]
[null,null,null,null,null,null,"L",null,null,null,null,null,"L",null,"OK"]
[null,null,null,null,null,null,"L",null,null,null,null,null,"L",null,"OK"]
[null,null,null,null,null,null,"L",null,null,null,null,null,"L",null,"OK"]
[null,null,null,null,null,null,"L",null,null,null,null,null,"L",null,"OK"]
[null,null,null,null,null,null,"L",null,null,null,null,null,"L",null,"OK"]
[null,null,null,null,null,null,"L",null,null,null,null,null,"L",null,"OK"]
[null,null,null,null,null,null,"L",null,null,null,null,null,"L",null,"OK"]
[null,null,null,null,null,null,"L",null,null,null,null,null,"L",null,"OK"]
[null,null,null,null,null,null,"L",null,null,null,null,null,"L",null,"OK"]
["Observations",null,null,null,null,null,null,null,null,null,null,null,null,null,""]
["Gestion administrative",{"$f":"COUNTIF(B115:B128,\"x\")/COUNTA($A$115:$A$128)","v":0},{"$f":"COUNTIF(C115:C128,\"x\")/COUNTA($A$115:$A$128)","v":0.5},0.25,0.25,0,{"$f":"IF(SUM(B114:F114)<>100%,\"D\",\"C\")","v":"C"},{"$f":"COUNTIF(H115:H128,\"x\")/COUNTA($A$115:$A$128)","v":0},{"$f":"COUNTIF(I115:I128,\"x\")/COUNTA($A$115:$A$128)","v":0.75},0.25,0,0,{"$f":"IF(SUM(H114:L114)<>100%,\"D\",\"C\")","v":"C"},null,""]
["Avoir ses papiers à jour",null,"x",null,null,null,"J",null,"x",null,null,null,"J",null,""]
["Reconnaître les différents documents administratifs",null,"x",null,null,null,"J",null,"x",null,null,null,"J",null,""]
["Savoir-faire seul une démarche administrative",null,null,"x",null,null,"J",null,"x",null,null,null,"J",null,""]
["Renouveler un document administratif seul",null,null,null,"x",null,"J",null,null,"x",null,null,"J",null,""]
[null,null,null,null,null,null,"L",null,null,null,null,null,"L",null,"OK"]
[null,null,null,null,null,null,"L",null,null,null,null,null,"L",null,"OK"]
[null,null,null,null,null,null,"L",null,null,null,null,null,"L",null,"OK"]
[null,null,null,null,null,null,"L",null,null,null,null,null,"L",null,"OK"]
[null,null,null,null,null,null,"L",null,null,null,null,null,"L",null,"OK"]
[null,null,null,null,null,null,"L",null,null,null,null,null,"L",null,"OK"]
[null,null,null,null,null,null,"L",null,null,null,null,null,"L",null,"OK"]
[null,null,null,null,null,null,"L",null,null,null,null,null,"L",null,"OK"]
[null,null,null,null,null,null,"L",null,null,null,null,null,"L",null,"OK"]
[null,null,null,null,null,null,"L",null,null,null,null,null,"L",null,"OK"]
["Observations",null,null,null,null,null,null,null,null,null,null,null,null,null,{"$f":"IF(A129<>\"\",\"\",\"OK\")","v":""}]
["Vie Sociale",{"$f":"COUNTIF(B131:B145,\"x\")/COUNTA($A$131:$A$145)","v":0},{"$f":"COUNTIF(C131:C145,\"x\")/COUNTA($A$131:$A$145)","v":0.81818181818181823},0,9.0909090909090912E-2,9.0909090909090912E-2,{"$f":"IF(SUM(B130:F130)<>100%,\"D\",\"C\")","v":"C"},{"$f":"COUNTIF(H131:H145,\"x\")/COUNTA($A$131:$A$145)","v":1},{"$f":"COUNTIF(I131:I145,\"x\")/COUNTA($A$131:$A$145)","v":0},0,0,0,{"$f":"IF(SUM(H130:L130)<>100%,\"D\",\"C\")","v":"C"},null,""]
["Echanger avec un environnement connu",null,"X",null,null,null,"J","x",null,null,null,null,"J",null,""]
["Echanger avec un environnement inconnu",null,"X",null,null,null,"J","x",null,null,null,null,"J",null,""]
["Construire une relation",null,"X",null,null,null,"J","x",null,null,null,null,"J",null,""]
["Entretenir et maintenir une relation",null,"X",null,null,null,"J","x",null,null,null,null,"J",null,""]
[" Rechercher et repérer  les personnes qui peuvent me soutenir dans mes démarches",null,null,null,"X",null,"J","x",null,null,null,null,"J",null,""]
["Demander de l'aide",null,"X",null,null,null,"J","x",null,null,null,null,"J",null,""]
["Choisir ses loisirs",null,"X",null,null,null,"J","x",null,null,null,null,"J",null,""]
["Gérer et organiser son temps libre",null,"X",null,null,null,"J","x",null,null,null,null,"J",null,""]
["Faire valoir ses droits",null,null,null,null,"X","J","x",null,null,null,null,"J",null,""]
["Utilisation des complexes socio-culturels",null,"X",null,null,null,"J","x",null,null,null,null,"J",null,""]
["Inscription à un club sportif",null,"X",null,null,null,"J","x",null,null,null,null,"J",null,""]
[null,null,null,null,null,null,{"$f":"IF(COUNTA(B142:F142)<>1,\"L\",\"J\")","v":"L"},null,null,null,null,null,{"$f":"IF(COUNTA(H142:L142)<>1,\"L\",\"J\")","v":"L"},null,"OK"]
[null,null,null,null,null,null,"L",null,null,null,null,null,"L",null,"OK"]
[null,null,null,null,null,null,"L",null,null,null,null,null,"L",null,"OK"]
[null,null,null,null,null,null,"L",null,null,null,null,null,"L",null,"OK"]
["Observations",null,null,null,null,null,null,null,null,null,null,null,null,null,""]
["Repère dans le temps",{"$f":"COUNTIF(B148:B169,\"x\")/COUNTA($A$148:$A$169)","v":0},{"$f":"COUNTIF(C148:C169,\"x\")/COUNTA($A$148:$A$169)","v":0},1,0,0,{"$f":"IF(SUM(B147:F147)<>100%,\"D\",\"C\")","v":"C"},{"$f":"COUNTIF(H148:H169,\"x\")/COUNTA($A$148:$A$169)","v":0.66666666666666663},{"$f":"COUNTIF(I148:I169,\"x\")/COUNTA($A$148:$A$169)","v":0.33333333333333331},0,0,0,{"$f":"IF(SUM(H147:L147)<>100%,\"D\",\"C\")","v":"C"},null,""]
["Connaître le système calendaire",null,null,"X",null,null,"J","X",null,null,null,null,"J",null,""]
["Connaître l’heure",null,null,"X",null,null,"J","X",null,null,null,null,"J",null,""]
["Se repérer dans l’espace- temps",null,null,"X",null,null,"J",null,"X",null,null,null,"J",null,""]
[null,null,null,null,null,null,"L",null,null,null,null,null,"L",null,"OK"]
[null,null,null,null,null,null,"L",null,null,null,null,null,"L",null,"OK"]
[null,null,null,null,null,null,"L",null,null,null,null,null,"L",null,"OK"]
[null,null,null,null,null,null,"L",null,null,null,null,null,"L",null,"OK"]
[null,null,null,null,null,null,"L",null,null,null,null,null,"L",null,"OK"]
[null,null,null,null,null,null,"L",null,null,null,null,null,"L",null,"OK"]
[null,null,null,null,null,null,"L",null,null,null,null,null,"L",null,"OK"]
[null,null,null,null,null,null,"L",null,null,null,null,null,"L",null,"OK"]
[null,null,null,null,null,null,"L",null,null,null,null,null,"L",null,"OK"]
[null,null,null,null,null,null,"L",null,null,null,null,null,"L",null,"OK"]
[null,null,null,null,null,null,"L",null,null,null,null,null,"L",null,"OK"]
[null,null,null,null,null,null,"L",null,null,null,null,null,"L",null,"OK"]
[null,null,null,null,null,null,"L",null,null,null,null,null,"L",null,"OK"]
[null,null,null,null,null,null,"L",null,null,null,null,null,"L",null,"OK"]
[null,null,null,null,null,null,"L",null,null,null,null,null,"L",null,"OK"]
[null,null,null,null,null,null,"L",null,null,null,null,null,"L",null,"OK"]
[null,null,null,null,null,null,"L",null,null,null,null,null,"L",null,"OK"]
[null,null,null,null,null,null,"L",null,null,null,null,null,"L",null,"OK"]
[null,null,null,null,null,null,"L",null,null,null,null,null,"L",null,"OK"]
["observations",null,null,null,null,null,null,null,null,null,null,null,null,null,""]
["Communication",{"$f":"COUNTIF(B172:B185,\"x\")/COUNTA($A$172:$A$185)","v":0.25},{"$f":"COUNTIF(C172:C185,\"x\")/COUNTA($A$172:$A$185)","v":0.75},0,0,0,{"$f":"IF(SUM(B171:F171)<>100%,\"D\",\"C\")","v":"C"},{"$f":"COUNTIF(H172:H185,\"x\")/COUNTA($A$172:$A$185)","v":0},{"$f":"COUNTIF(I172:I185,\"x\")/COUNTA($A$172:$A$185)","v":0.875},0.125,0,0,{"$f":"IF(SUM(H171:L171)<>100%,\"D\",\"C\")","v":"C"},null,""]
["Utiliser le langage verbal",null,"X",null,null,null,"J",null,"X",null,null,null,"J",null,""]
["Expliquer une situation complexe",null,"X",null,null,null,"J",null,null,"X",null,null,"J",null,""]
["Exprimer ses ressentis",null,"X",null,null,null,"J",null,"X",null,null,null,"J",null,""]
[" lire",null,"X",null,null,null,"J",null,"X",null,null,null,"J",null,""]
["Comprendre un document","X",null,null,null,null,"J",null,"X",null,null,null,"J",null,""]
[" écrire",null,"X",null,null,null,"J",null,"X",null,null,null,"J",null,""]
["Téléphoner",null,"X",null,null,null,"J",null,"X",null,null,null,"J",null,""]
["Utiliser un ordinateur","X",null,null,null,null,"J",null,"X",null,null,null,"J",null,""]
[null,null,null,null,null,null,"L",null,null,null,null,null,"L",null,"OK"]
[null,null,null,null,null,null,"L",null,null,null,null,null,"L",null,"OK"]
[null,null,null,null,null,null,"L",null,null,null,null,null,"L",null,"OK"]
[null,null,null,null,null,null,"L",null,null,null,null,null,"L",null,"OK"]
[null,null,null,null,null,null,"L",null,null,null,null,null,"L",null,"OK"]
[null,null,null,null,null,null,"L",null,null,null,null,null,"L",null,"OK"]
["Observations",null,null,null,null,null,null,null,null,null,null,null,null,null,""]
["Emploi",{"$f":"COUNTIF(B188:B206,\"x\")/COUNTA($A$188:$A$206)","v":0.33333333333333331},{"$f":"COUNTIF(C188:C206,\"x\")/COUNTA($A$188:$A$206)","v":0.66666666666666663},0,0,0,{"$f":"IF(SUM(B187:F187)<>100%,\"D\",\"C\")","v":"C"},{"$f":"COUNTIF(H188:H206,\"x\")/COUNTA($A$188:$A$206)","v":1},{"$f":"COUNTIF(I188:I206,\"x\")/COUNTA($A$188:$A$206)","v":0},0,0,0,{"$f":"IF(SUM(H187:L187)<>100%,\"D\",\"C\")","v":"C"},null,""]
["Rechercher un travail",null,"X",null,null,null,"J","X",null,null,null,null,"J",null,""]
["S’adapter à un emploi",null,"X",null,null,null,"J","X",null,null,null,null,"J",null,""]
["Se maintenir en emploi","X",null,null,null,null,"J","X",null,null,null,null,"J",null,""]
[null,null,null,null,null,null,"L",null,null,null,null,null,"L",null,"OK"]
[null,null,null,null,null,null,"L",null,null,null,null,null,"L",null,"OK"]
[null,null,null,null,null,null,"L",null,null,null,null,null,"L",null,"OK"]
[null,null,null,null,null,null,"L",null,null,null,null,null,"L",null,"OK"]
[null,null,null,null,null,null,"L",null,null,null,null,null,"L",null,"OK"]
[null,null,null,null,null,null,"L",null,null,null,null,null,"L",null,"OK"]
[null,null,null,null,null,null,"L",null,null,null,null,null,"L",null,"OK"]
[null,null,null,null,null,null,"L",null,null,null,null,null,"L",null,"OK"]
[null,null,null,null,null,null,"L",null,null,null,null,null,"L",null,"OK"]
[null,null,null,null,null,null,"L",null,null,null,null,null,"L",null,"OK"]
[null,null,null,null,null,null,"L",null,null,null,null,null,"L",null,"OK"]
[null,null,null,null,null,null,"L",null,null,null,null,null,"L",null,"OK"]
[null,null,null,null,null,null,"L",null,null,null,null,null,"L",null,"OK"]
[null,null,null,null,null,null,"L",null,null,null,null,null,"L",null,"OK"]
[null,null,null,null,null,null,"L",null,null,null,null,null,"L",null,"OK"]
[null,null,null,null,null,null,{"$f":"IF(COUNTA(B206:F206)<>1,\"L\",\"J\")","v":"L"},null,null,null,null,null,{"$f":"IF(COUNTA(H206:L206)<>1,\"L\",\"J\")","v":"L"},null,"OK"]
["Observations",null,null,null,null,null,null,null,null,null,null,null,null,null,""]
[]
[]
[]
[]
[]
[]
[]
[]
[]
[]
[]
[]
[]
[]
[]
[]
[]
[]
[]
[]
[]
[]
[null,null,null,null,null,null,null,{"$f":"\"items: \"","v":"items: "},"Santé"]
[]
[]
[]
[]
[]
[]
[]
[]
[]
[]
[]
[]
[]
[]
[]
[]
[]
[]
[]
[]
[null,"items: ","Communication",null,null,null,null,"items: ","Alimentation"]
[]
[]
[]
[]
[]
[]
[]
[]
[]
[]
[]
[]
[]
[]
[]
[]
[]
[]
[]
[]
[]
[]
[]
[]
[]
[]
[]
[]
[]
[]
[]
[]
[]
[]
[]
[]
[]
[]
[]
[]
[]
[]
[]
[]
[]
[]
[]
[]
[]
[]
[]
[]
[]
[]
[]
[]
[]
[]
[]
[]
[]
[]
[]
[]
[]
[]
[]
[]
[]
[]
[]
[]
[]
[]
[]
[]
[]
[]
[]
[]
[]
[]
[]
[]
[]
[]
[]
[]
[]
[]
[]
[]
[]
[]
[]
[]
[]
[]
[]
[]
[]
[]
[]
[]
[]
[]
[]
[]
[]
[]
[]
[]
[]
[]
[]
[]
[]
[]
[]
[]
[]
[]
[]
[]
[]
[]
[]
[]
[]
[]
[]
[]
[]
[]
[]
[]
[]
[]
[]
[]
[]
[]
[]
[]
[]
[]
[]
[]
[]
[]
[]
[]
[]
[]
[]
[]
[]
[]
[]
[]
[]
[]
[]
[]
[]
[]
[]
[null,{"$f":"B8","v":"Evaluation réalisée par  Albert"},null,null,null,null,null,{"$f":"H8","v":"Evaluation réalisée par Prénom Nom"}]
["Items","je suis autonome","il faut juste me le rappeler","j'ai besoin d'un coup de main","j'ai besoin d'une aide extérieure","Je ne suis pas concerné","Colonne1","Acquis","En cours d’acquis/stimulé ou soutenu","Acquis mais fluctuant en fonction du moment","Non acquis/ compensé","Pas concerné / pas évaluable"]
[{"$f":"A10","v":"Logement"},{"$f":"IF(B10<>0,B10,NA())","v":0.75},{"$f":"IF(C10<>0,C10,NA())","v":0.25},{"$error":"#N/A"},{"$error":"#N/A"},{"$error":"#N/A"},null,{"$error":"#N/A"},1,{"$error":"#N/A"},{"$error":"#N/A"},{"$error":"#N/A"}]
[{"$f":"A27","v":"Alimentation"},{"$f":"IF(B27<>0,B27,NA())","v":1},{"$f":"IF(C27<>0,C27,NA())","v":{"$error":"#N/A"}},{"$error":"#N/A"},{"$error":"#N/A"},{"$error":"#N/A"},null,1,{"$error":"#N/A"},{"$error":"#N/A"},{"$error":"#N/A"},{"$error":"#N/A"}]
[{"$f":"A44","v":"Hygiène"},{"$f":"IF(B44<>0,B44,NA())","v":{"$error":"#N/A"}},{"$f":"IF(C44<>0,C44,NA())","v":1},{"$error":"#N/A"},{"$error":"#N/A"},{"$error":"#N/A"},null,{"$error":"#N/A"},1,{"$error":"#N/A"},{"$error":"#N/A"},{"$error":"#N/A"}]
[{"$f":"A61","v":"Santé"},{"$f":"IF(B61<>0,B61,NA())","v":{"$error":"#N/A"}},{"$f":"IF(C61<>0,C61,NA())","v":1},{"$error":"#N/A"},{"$error":"#N/A"},{"$error":"#N/A"},null,1,{"$error":"#N/A"},{"$error":"#N/A"},{"$error":"#N/A"},{"$error":"#N/A"}]
[{"$f":"A77","v":"Budget"},{"$f":"IF(B77<>0,B77,NA())","v":{"$error":"#N/A"}},{"$f":"IF(C77<>0,C77,NA())","v":1},{"$error":"#N/A"},{"$error":"#N/A"},{"$error":"#N/A"},null,1,{"$error":"#N/A"},{"$error":"#N/A"},{"$error":"#N/A"},{"$error":"#N/A"}]
[{"$f":"A96","v":"Déplacement"},{"$f":"IF(B96<>0,B96,NA())","v":1},{"$f":"IF(C96<>0,C96,NA())","v":{"$error":"#N/A"}},{"$error":"#N/A"},{"$error":"#N/A"},{"$error":"#N/A"},null,{"$error":"#N/A"},1,{"$error":"#N/A"},{"$error":"#N/A"},{"$error":"#N/A"}]
[{"$f":"A114","v":"Gestion administrative"},{"$f":"IF(B114<>0,B114,NA())","v":{"$error":"#N/A"}},{"$f":"IF(C114<>0,C114,NA())","v":0.5},0.25,0.25,{"$error":"#N/A"},null,{"$error":"#N/A"},0.75,0.25,{"$error":"#N/A"},{"$error":"#N/A"}]
[{"$f":"A130","v":"Vie Sociale"},{"$f":"IF(B130<>0,B130,NA())","v":{"$error":"#N/A"}},{"$f":"IF(C130<>0,C130,NA())","v":0.81818181818181823},{"$error":"#N/A"},9.0909090909090912E-2,9.0909090909090912E-2,null,1,{"$error":"#N/A"},{"$error":"#N/A"},{"$error":"#N/A"},{"$error":"#N/A"}]
[{"$f":"A147","v":"Repère dans le temps"},{"$f":"IF(B147<>0,B147,NA())","v":{"$error":"#N/A"}},{"$f":"IF(C147<>0,C147,NA())","v":{"$error":"#N/A"}},1,{"$error":"#N/A"},{"$error":"#N/A"},null,0.66666666666666663,0.33333333333333331,{"$error":"#N/A"},{"$error":"#N/A"},{"$error":"#N/A"}]
[{"$f":"A171","v":"Communication"},{"$f":"IF(B171<>0,B171,NA())","v":0.25},{"$f":"IF(C171<>0,C171,NA())","v":0.75},{"$error":"#N/A"},{"$error":"#N/A"},{"$error":"#N/A"},null,{"$error":"#N/A"},0.875,0.125,{"$error":"#N/A"},{"$error":"#N/A"}]
[{"$f":"A187","v":"Emploi"},{"$f":"IF(B187<>0,B187,NA())","v":0.33333333333333331},{"$f":"IF(C187<>0,C187,NA())","v":0.66666666666666663},{"$error":"#N/A"},{"$error":"#N/A"},{"$error":"#N/A"},null,1,{"$error":"#N/A"},{"$error":"#N/A"},{"$error":"#N/A"},{"$error":"#N/A"}]
[]
[]
[]
[null,{"$f":"B8","v":"Evaluation réalisée par  Albert"},null,null,null,null,null,{"$f":"H8","v":"Evaluation réalisée par Prénom Nom"}]
[null,{"$f":"Tableau225[[#Headers],[je suis autonome]]","v":"je suis autonome"},{"$f":"Tableau225[[#Headers],[il faut juste me le rappeler]]","v":"il faut juste me le rappeler"},{"$f":"Tableau225[[#Headers],[j''ai besoin d''un coup de main]]","v":"j'ai besoin d'un coup de main"},{"$f":"Tableau225[[#Headers],[j''ai besoin d''une aide extérieure]]","v":"j'ai besoin d'une aide extérieure"},{"$f":"Tableau225[[#Headers],[Je ne suis pas concerné]]","v":"Je ne suis pas concerné"},null,{"$f":"Tableau225[[#Headers],[Acquis]]","v":"Acquis"},{"$f":"Tableau225[[#Headers],[En cours d’acquis/stimulé ou soutenu]]","v":"En cours d’acquis/stimulé ou soutenu"},{"$f":"Tableau225[[#Headers],[Acquis mais fluctuant en fonction du moment]]","v":"Acquis mais fluctuant en fonction du moment"},{"$f":"Tableau225[[#Headers],[Non acquis/ compensé]]","v":"Non acquis/ compensé"},{"$f":"Tableau225[[#Headers],[Pas concerné / pas évaluable]]","v":"Pas concerné / pas évaluable"}]
[{"$f":"IF(INDEX(Tableau225[Items],MATCH($I$230,$A$421:$A$431,0))>0,INDEX(A421:A431,MATCH($I$230,$A$421:$A$431,0)),NA())","v":"Santé"},{"$f":"IF(INDEX(Tableau225[je suis autonome],MATCH($I$230,$A$421:$A$431,0))>0,INDEX(B421:B431,MATCH($I$230,$A$421:$A$431,0)),NA())","v":{"$error":"#N/A"}},{"$f":"IF(INDEX(Tableau225[il faut juste me le rappeler],MATCH($I$230,$A$421:$A$431,0))>0,INDEX(C421:C431,MATCH($I$230,$A$421:$A$431,0)),NA())","v":1},{"$f":"IF(INDEX(Tableau225[j''ai besoin d''un coup de main],MATCH($I$230,$A$421:$A$431,0))>0,INDEX(D421:D431,MATCH($I$230,$A$421:$A$431,0)),NA())","v":{"$error":"#N/A"}},{"$f":"IF(INDEX(Tableau225[j''ai besoin d''une aide extérieure],MATCH($I$230,$A$421:$A$431,0))>0,INDEX(E421:E431,MATCH($I$230,$A$421:$A$431,0)),NA())","v":{"$error":"#N/A"}},{"$f":"IF(INDEX(Tableau225[Je ne suis pas concerné],MATCH($I$230,$A$421:$A$431,0))>0,INDEX(F421:F431,MATCH($I$230,$A$421:$A$431,0)),NA())","v":{"$error":"#N/A"}},null,{"$f":"IF(INDEX(Tableau225[Acquis],MATCH($I$230,$A$421:$A$431,0))>0,INDEX(H421:H431,MATCH($I$230,$A$421:$A$431,0)),NA())","v":1},{"$f":"IF(INDEX(Tableau225[En cours d’acquis/stimulé ou soutenu],MATCH($I$230,$A$421:$A$431,0))>0,INDEX(I421:I431,MATCH($I$230,$A$421:$A$431,0)),NA())","v":{"$error":"#N/A"}},{"$f":"IF(INDEX(Tableau225[Acquis mais fluctuant en fonction du moment],MATCH($I$230,$A$421:$A$431,0))>0,INDEX(J421:J431,MATCH($I$230,$A$421:$A$431,0)),NA())","v":{"$error":"#N/A"}},{"$f":"IF(INDEX(Tableau225[Non acquis/ compensé],MATCH($I$230,$A$421:$A$431,0))>0,INDEX(K421:K431,MATCH($I$230,$A$421:$A$431,0)),NA())","v":{"$error":"#N/A"}},{"$f":"IF(INDEX(Tableau225[Pas concerné / pas évaluable],MATCH($I$230,$A$421:$A$431,0))>0,INDEX(L421:L431,MATCH($I$230,$A$421:$A$431,0)),NA())","v":{"$error":"#N/A"}}]
[{"$f":"IF(INDEX(Tableau225[Items],MATCH($C$251,$A$421:$A$431,0))>0,INDEX(A421:A431,MATCH($C$251,$A$421:$A$431,0)),NA())","v":"Communication"},{"$f":"IF(INDEX(Tableau225[je suis autonome],MATCH($C$251,$A$421:$A$431,0))>0,INDEX(B421:B431,MATCH($C$251,$A$421:$A$431,0)),NA())","v":0.25},{"$f":"IF(INDEX(Tableau225[il faut juste me le rappeler],MATCH($C$251,$A$421:$A$431,0))>0,INDEX(C421:C431,MATCH($C$251,$A$421:$A$431,0)),NA())","v":0.75},{"$f":"IF(INDEX(Tableau225[j''ai besoin d''un coup de main],MATCH($C$251,$A$421:$A$431,0))>0,INDEX(D421:D431,MATCH($C$251,$A$421:$A$431,0)),NA())","v":{"$error":"#N/A"}},{"$f":"IF(INDEX(Tableau225[j''ai besoin d''une aide extérieure],MATCH($C$251,$A$421:$A$431,0))>0,INDEX(E421:E431,MATCH($C$251,$A$421:$A$431,0)),NA())","v":{"$error":"#N/A"}},{"$f":"IF(INDEX(Tableau225[Je ne suis pas concerné],MATCH($C$251,$A$421:$A$431,0))>0,INDEX(F421:F431,MATCH($C$251,$A$421:$A$431,0)),NA())","v":{"$error":"#N/A"}},null,{"$f":"IF(INDEX(Tableau225[Acquis],MATCH($C$251,$A$421:$A$431,0))>0,INDEX(H421:H431,MATCH($C$251,$A$421:$A$431,0)),NA())","v":{"$error":"#N/A"}},{"$f":"IF(INDEX(Tableau225[En cours d’acquis/stimulé ou soutenu],MATCH($C$251,$A$421:$A$431,0))>0,INDEX(I421:I431,MATCH($C$251,$A$421:$A$431,0)),NA())","v":0.875},{"$f":"IF(INDEX(Tableau225[Acquis mais fluctuant en fonction du moment],MATCH($C$251,$A$421:$A$431,0))>0,INDEX(J421:J431,MATCH($C$251,$A$421:$A$431,0)),NA())","v":0.125},{"$f":"IF(INDEX(Tableau225[Non acquis/ compensé],MATCH($C$251,$A$421:$A$431,0))>0,INDEX(K421:K431,MATCH($C$251,$A$421:$A$431,0)),NA())","v":{"$error":"#N/A"}},{"$f":"IF(INDEX(Tableau225[Pas concerné / pas évaluable],MATCH($C$251,$A$421:$A$431,0))>0,INDEX(L421:L431,MATCH($C$251,$A$421:$A$431,0)),NA())","v":{"$error":"#N/A"}}]
[{"$f":"IF(INDEX(Tableau225[Items],MATCH($I$251,$A$421:$A$431,0))>0,INDEX(A421:A431,MATCH($I$251,$A$421:$A$431,0)),NA())","v":"Alimentation"},{"$f":"IF(INDEX(Tableau225[je suis autonome],MATCH($I$251,$A$421:$A$431,0))>0,INDEX(B421:B431,MATCH($I$251,$A$421:$A$431,0)),NA())","v":1},{"$f":"IF(INDEX(Tableau225[il faut juste me le rappeler],MATCH($I$251,$A$421:$A$431,0))>0,INDEX(C421:C431,MATCH($I$251,$A$421:$A$431,0)),NA())","v":{"$error":"#N/A"}},{"$f":"IF(INDEX(Tableau225[j''ai besoin d''un coup de main],MATCH($I$251,$A$421:$A$431,0))>0,INDEX(D421:D431,MATCH($I$251,$A$421:$A$431,0)),NA())","v":{"$error":"#N/A"}},{"$f":"IF(INDEX(Tableau225[j''ai besoin d''une aide extérieure],MATCH($I$251,$A$421:$A$431,0))>0,INDEX(E421:E431,MATCH($I$251,$A$421:$A$431,0)),NA())","v":{"$error":"#N/A"}},{"$f":"IF(INDEX(Tableau225[Je ne suis pas concerné],MATCH($I$251,$A$421:$A$431,0))>0,INDEX(F421:F431,MATCH($I$251,$A$421:$A$431,0)),NA())","v":{"$error":"#N/A"}},{"$f":"IF(INDEX(Tableau225[Colonne1],MATCH($I$251,$A$421:$A$431,0))>0,INDEX(G421:G431,MATCH($I$251,$A$421:$A$431,0)),NA())","v":{"$error":"#N/A"}},{"$f":"IF(INDEX(Tableau225[Acquis],MATCH($I$251,$A$421:$A$431,0))>0,INDEX(H421:H431,MATCH($I$251,$A$421:$A$431,0)),NA())","v":1},{"$f":"IF(INDEX(Tableau225[En cours d’acquis/stimulé ou soutenu],MATCH($I$251,$A$421:$A$431,0))>0,INDEX(I421:I431,MATCH($I$251,$A$421:$A$431,0)),NA())","v":{"$error":"#N/A"}},{"$f":"IF(INDEX(Tableau225[Acquis mais fluctuant en fonction du moment],MATCH($I$251,$A$421:$A$431,0))>0,INDEX(J421:J431,MATCH($I$251,$A$421:$A$431,0)),NA())","v":{"$error":"#N/A"}},{"$f":"IF(INDEX(Tableau225[Non acquis/ compensé],MATCH($I$251,$A$421:$A$431,0))>0,INDEX(K421:K431,MATCH($I$251,$A$421:$A$431,0)),NA())","v":{"$error":"#N/A"}},{"$f":"IF(INDEX(Tableau225[Pas concerné / pas évaluable],MATCH($I$251,$A$421:$A$431,0))>0,INDEX(L421:L431,MATCH($I$251,$A$421:$A$431,0)),NA())","v":{"$error":"#N/A"}}]